Cogmind - Beta 9.3 @@@ ROGUE MODE // 2019.12.28 @ 23:04:08 Player: FacGarFacGarFacWasFacGar Result: Heading to fleet! Performance ------------- Evolutions (9) 4500 Regions Visited (40) 8000 Robots Destroyed (768) 3840 Value Destroyed (44528) 44528 Prototype IDs (124) 2480 Alien Tech Used (18) 3600 Bonus (54083) 54083 TOTAL SCORE: 121031 Bonus ------- High Alert Combat Kills 9668 Follower Combat Kills 2984 Entered Garrisons 1400 Used RIF Installer 3500 Network Hubs Disabled 600 Aligned with FarCom 300 Met R17 at Cetus 500 Found Hidden Lab 3000 Used Core Reset Matrix 3000 Scanned by Researcher 500 Destroyed MAIN.C Guards 500 Met MAIN.C 5000 Destroyed MAIN.C Shell 5000 Destroyed MAIN.C 10000 Met Architect 300 Destroyed A8 300 Destroyed A6 400 Destroyed A5 500 Destroyed A2 1000 Destroyed Architect 15000 Win 3000 Friendly Fire -12369 Cogmind --------- Core Integrity 936/1850 Matter 425/425 Energy 1476/1490 System Corruption 0% Temperature Cool (6) Movement Treading (180) Ox1 Location To Fleet Rendezvous Parts ------- > --- POWER (2) -------- Improved Quantum Reactor Zero-point Reactor > --- PROPULSION (4) --- Enhanced Armored Heavy Treads Enhanced Armored Heavy Treads > --- UTILITY (16) ----- Desublimator Experimental Coolant Injector High-capacity Storage Unit High-capacity Storage Unit Experimental Energy Well Experimental Optical Array Experimental Targeting Computer Experimental Targeting Computer Experimental Target Analyzer Experimental Core Analyzer Advanced Armor Integrity Analyzer Experimental Weapon Cycler Experimental Phase Shifter SHELL Armor > --- WEAPON (4) ------- Potential Cannon Perforator > --- INVENTORY (20) --- Enhanced Armored Heavy Treads Improved Fusion Compressor Experimental Matter Compressor (500) Experimental Matter Compressor (500) Gravity Neutralizing Apparatus Experimental Targeting Computer Experimental Weapon Cycler Experimental Hardlight Generator High-powered Transdimensional Reconstructor Multirail Hypervelocity Linear Accelerator Omega Cannon Peak State ------------ > --- POWER ------------ Improved Quantum Reactor Zero-point Reactor > --- PROPULSION ------- Enhanced Armored Heavy Treads Enhanced Armored Heavy Treads > --- UTILITY ---------- Desublimator High-capacity Storage Unit High-capacity Storage Unit Improved Energy Well Experimental Energy Well Experimental Optical Array Experimental Targeting Computer Experimental Targeting Computer Experimental Target Analyzer Experimental Core Analyzer Advanced Armor Integrity Analyzer Experimental Weapon Cycler Experimental Phase Shifter SHELL Armor > --- WEAPON ----------- Potential Cannon Perforator > --- INVENTORY -------- Enhanced Armored Heavy Treads Enhanced Flexi-carbon Leg Improved Fusion Compressor Experimental Coolant Injector Experimental Matter Compressor Experimental Matter Compressor Gravity Neutralizing Apparatus Experimental Targeting Computer Improved Weapon Cycler Experimental Weapon Cycler Experimental Hardlight Generator High-powered Transdimensional Reconstructor High-powered Transdimensional Reconstructor Multirail Hypervelocity Linear Accelerator Omega Cannon Field Lobotomy Kit [Rating: 250] Favorites ----------- Power Improved Quantum Reactor Engine Improved Ion Engine Power Core Micro Fission Core Reactor Improved Quantum Reactor Propulsion Heavy Treads Treads Heavy Treads Leg Enhanced Flexi-carbon Leg Utility High-capacity Storage Unit Device Improved Weapon Cycler Storage High-capacity Storage Unit Processor Experimental Targeting Computer Hackware Relay Coupler [NC] Protection SHELL Armor Artifact Phase Redirector Weapon Improved KE Penetrator Energy Gun High-powered Shock Rifle Energy Cannon Potential Cannon Ballistic Gun Improved KE Penetrator Ballistic Cannon Perforator Launcher Grenade Launcher Special Weapon Improved Remote Datajack Impact Weapon Core Stripper Slashing Weapon Scythe Build | -11 -10 -10 -10 -9 -8 -8 -8 -8 -7 -7 -7 -7 -6 -6 -6 -6 -6 -6 -5 -5 -5 -5 -5 -5 -5 -5 -5 -4 -4 -4 -4 -4 -3 -3 -2 -2 -2 -1 -1 -1 ------- Run | Scr Mat Min Exi Min Mat Gar Mat Gar Fac Gar Fac Gar Fac Was Fac Gar Fac Gar Fac Was Fac Gar Fac Ext Cet Arc Hub Fac Was Fac Arm Lab Res Qua Res Tes Sec Acc Com Ac0 Slots Evolved 18 | . . . . . 4 . . . 2 . . . 2 . . . . . 2 . . . . . . . . 2 . . . . 2 . 2 . . 2 . . Power 1 | . . . . . . . . . . . . . . . . . . . 1 . . . . . . . . . . . . . . . . . . . . . Propulsion 2 | . . . . . 1 . . . 1 . . . . . . . . . . . . . . . . . . . . . . . . . . . . . . . Utility 13 | . . . . . 2 . . . 1 . . . 1 . . . . . 1 . . . . . . . . 2 . . . . 2 . 2 . . 2 . . Weapon 2 | . . . . . 1 . . . . . . . 1 . . . . . . . . . . . . . . . . . . . . . . . . . . . Parts Attached 797 | 8 22 2 4 7 33 18 8 3 15 13 9 12 13 13 5 26 3 15 24 15 . 2 31 27 15 6 23 4 14 34 75 11 19 26 19 52 61 18 33 59 Power 74 | 1 2 1 . . 3 1 . 1 2 . . . . 1 . 2 . . 2 4 . . 1 1 2 1 1 . 2 2 9 . . 6 4 5 6 . 6 8 Engine 15 | 1 2 1 . . 3 1 . 1 1 . . . . . . 2 . . 2 . . . . . . . 1 . . . . . . . . . . . . . Core 7 | . . . . . . . . . 1 . . . . . . . . . . . . . 1 1 . 1 . . . 1 1 . . 1 . . . . . . Reactor 52 | . . . . . . . . . . . . . . 1 . . . . . 4 . . . . 2 . . . 2 1 8 . . 5 4 5 6 . 6 8 Propulsion 90 | 2 3 . 1 . 11 4 4 . 2 2 5 . 3 2 . 1 . . 2 2 . . 1 3 4 . 3 1 1 1 6 . . 1 3 6 3 1 6 6 Treads 89 | 2 3 . 1 . 11 4 4 . 2 2 5 . 3 2 . 1 . . 2 2 . . 1 3 4 . 3 1 1 1 6 . . 1 3 6 3 1 6 5 Leg 1 | . . . . . . . . . . . . . . . . . . . . . . . . . . . . . . . . . . . . . . . . 1 Wheel . | . . . . . . . . . . . . . . . . . . . . . . . . . . . . . . . . . . . . . . . . . Hover . | . . . . . . . . . . . . . . . . . . . . . . . . . . . . . . . . . . . . . . . . . Flight . | . . . . . . . . . . . . . . . . . . . . . . . . . . . . . . . . . . . . . . . . . Utility 311 | 2 6 . 3 . 11 1 2 . 4 1 2 2 5 4 5 8 2 6 6 7 . 2 13 15 5 3 9 2 5 20 20 5 10 8 9 28 32 14 12 22 Device 145 | 1 1 . . . 1 . . . 3 . . . 1 2 . 4 . . 3 4 . 1 5 4 2 2 5 1 2 10 13 3 2 3 5 19 19 6 8 15 Storage 55 | . 2 . 2 . 4 1 . . . . . 1 1 1 3 2 . . . 3 . . 3 . 2 . 2 . 2 2 5 . 2 2 1 4 6 . 1 3 Processor 18 | 1 . . . . . . . . 1 . . . . . . . 1 . . . . . 2 3 . . . . . . . . 1 1 1 . 1 4 1 1 Hackware 29 | . . . . . . . . . . . 1 . 1 . 1 . . 6 2 . . 1 2 1 . . . 1 . 3 . . 5 1 1 . . 3 . . Protection 61 | . 3 . 1 . 6 . 2 . . 1 1 1 2 1 1 2 1 . 1 . . . 1 7 1 1 2 . 1 5 2 2 . . 1 3 6 1 2 3 Artifact 3 | . . . . . . . . . . . . . . . . . . . . . . . . . . . . . . . . . . 1 . 2 . . . . Weapon 322 | 3 11 1 . 7 8 12 2 2 7 10 2 10 5 6 . 15 1 9 14 2 . . 16 8 4 2 10 1 6 11 40 6 9 11 3 13 20 3 9 23 Energy Gun 20 | 1 . . . . . . . . . . . 1 2 1 . 1 . . 6 . . . 3 . . . . . . . 2 1 . 1 1 . . . . . Energy Cannon 69 | . 3 . . 4 . 4 . . 1 . . . . 1 . 4 . 2 . 1 . . 2 . . . 3 . 1 3 6 1 1 7 1 2 7 1 4 10 Ballistic Gun 109 | 2 2 1 . 2 8 4 2 1 4 4 2 5 . . . 7 . 3 4 . . . . 5 4 2 5 . 4 4 20 3 4 . . 2 2 . . 3 Ballistic Cannon 26 | . . . . . . . . . . . . . 1 1 . . . . 1 . . . 3 1 . . . . . . . 1 . . . 5 2 . 4 7 Launcher 17 | . 4 . . 1 . 2 . 1 1 3 . 3 . . . . . . . . . . . . . . . . . . 2 . . . . . . . . . Special Weapon 35 | . 2 . . . . 1 . . . 1 . . 1 2 . 1 . 3 2 . . . 4 1 . . . 1 1 2 2 . . 2 1 1 1 2 1 3 Impact Weapon 11 | . . . . . . . . . . . . . . . . . . . . . . . . . . . . . . . . . . . . 3 8 . . . Slashing Weapon 35 | . . . . . . 1 . . 1 2 . 1 1 1 . 2 1 1 1 1 . . 4 1 . . 2 . . 2 8 . 4 1 . . . . . . Piercing Weapon . | . . . . . . . . . . . . . . . . . . . . . . . . . . . . . . . . . . . . . . . . . Special Melee Weapon . | . . . . . . . . . . . . . . . . . . . . . . . . . . . . . . . . . . . . . . . . . Unidentified Prototypes 59 | . . . . . . . . . . . . . . 1 . . 1 . . . . . 2 . 4 . 3 . . 1 11 6 . . . 7 4 1 4 14 Parts Lost 35 | . 2 . . . . . . . . . 2 1 . 1 1 2 . . . . . . 1 1 . 1 . . . 1 6 . . 1 1 4 . . . 10 Power 4 | . 1 . . . . . . . . . . . . . . . . . . . . . . . . . . . . . . . . . . 2 . . . 1 Propulsion 2 | . . . . . . . . . . . . . . . . . . . . . . . . . . . . . . . . . . . . . . . . 2 Utility 16 | . . . . . . . . . . . 2 . . . 1 1 . . . . . . 1 . . . . . . . 4 . . . 1 2 . . . 4 Weapon 13 | . 1 . . . . . . . . . . 1 . 1 . 1 . . . . . . . 1 . 1 . . . 1 2 . . 1 . . . . . 3 Highest Loss Streak 3 | . 2 . . . . . . . . . 2 1 . 1 1 1 . . . . . . 1 1 . 1 . . . 1 1 . . 1 1 3 . . . 3 Average Slot Usage (%) 82 | . 97 100 89 85 97 100 100 100 99 100 99 99 98 88 74 69 86 86 86 80 82 82 76 83 86 82 70 65 72 69 80 86 89 84 81 78 71 73 73 72 Engine 2 | . 12 14 14 14 8 9 9 9 3 . . . . . . 4 6 6 9 3 . . . . . . 3 5 2 . . . . . . . . . . . Core 1 | . . . . . . . . . 3 7 7 7 6 2 . . . . . . . . 1 8 5 2 5 5 5 4 1 5 4 2 . . . . . . Reactor 4 | . . . . . . . . . . . . . . 3 6 1 . . . 7 11 11 9 1 5 8 1 . 2 5 8 5 4 5 7 6 7 7 7 6 Treads 14 | . 27 28 28 28 26 27 27 27 30 30 29 30 26 22 20 20 20 20 18 15 11 11 10 11 11 11 11 10 10 10 9 10 9 9 8 8 8 7 6 6 Device 8 | . 8 . . . 4 9 9 9 14 15 9 7 6 5 . 3 13 3 1 4 17 20 12 8 9 . 6 10 7 8 16 23 13 9 8 12 6 4 7 10 Storage 16 | . 11 14 14 14 16 19 18 18 15 15 15 15 13 19 9 12 13 13 10 14 11 11 9 17 17 22 12 10 12 17 22 20 20 19 16 22 19 17 18 13 Processor 5 | . 2 . . . . . . . . . . . . . . . . . . . . . . 3 11 10 . . . . . . . 4 10 5 7 12 22 23 Hackware 3 | . . . . . . . . . . . 4 7 11 5 4 . . 13 19 5 5 2 3 . . . . 5 5 3 . . 9 13 12 12 8 9 . . Protection 4 | . 5 14 4 . 13 8 9 9 7 7 6 6 5 . 5 6 6 2 . 2 . . 2 5 . . 4 5 4 3 . 1 6 . 1 1 5 6 3 3 Energy Gun 1 | . 6 . . . . . . . . . . . 1 5 . . . . 2 . . . 6 11 . . . . . . . . . . . . . . . . Energy Cannon 2 | . 8 . . 21 . 5 . . . . . . . . 6 4 4 . . . 5 5 4 . . . 1 5 . 7 2 . . 8 6 4 . . . 2 Ballistic Gun 10 | . 3 28 28 5 26 16 27 26 22 22 22 20 20 13 13 13 20 20 9 10 5 5 2 6 23 23 19 . 20 1 13 13 15 . . . . . . . Special Weapon 1 | . . . . . . . . . . . . . . 4 . . . 5 4 5 5 5 4 . . . . 2 . 2 . . . 3 3 1 . 1 . . Slashing Weapon 1 | . . . . . . 4 . . . . . . 4 . 6 . 1 . 3 4 5 5 2 3 . . . 5 . 2 1 4 1 3 1 . . . . . Naked Turns . | . . . . . . . . . . . . . . . . . . . . . . . . . . . . . . . . . . . . . . . . . Heaviest Build 276 | 8 32 32 91 93 104 116 102 105 107 108 106 105 105 87 142 142 92 92 97 128 94 96 182 182 165 165 163 121 158 176 235 204 209 210 200 267 276 263 257 229 Greatest Support 180 | 40 46 46 46 46 69 60 84 84 106 106 106 106 106 114 114 122 122 122 122 140 140 140 140 140 160 160 160 160 160 160 160 150 150 150 155 180 180 170 170 172 Greatest Overweight (x) 63 | . . . 1 2 1 1 1 1 1 1 2 . . . 1 1 . . . . . . 1 1 1 1 1 . 1 1 2 63 1 1 1 1 1 1 2 2 Average Overweight (x) . | . . . . 1 1 1 1 1 . . . . . . . . . . . . . . . . . . . . . . . 6 1 1 1 1 1 1 1 . Largest Inventory Capacity 56 | 4 10 10 24 24 40 28 28 20 20 20 20 20 40 32 40 40 32 32 32 40 32 32 40 28 48 48 40 32 40 40 56 36 36 36 36 44 44 44 36 36 Average Capacity 29 | 4 6 10 19 24 20 20 20 20 20 20 20 20 20 31 23 29 32 32 30 32 32 32 29 28 31 47 33 32 35 40 38 36 36 36 36 40 43 40 36 22 Most Carried 48 | 4 10 10 22 22 24 24 23 20 20 20 20 20 20 23 24 32 31 32 32 38 31 32 32 26 40 48 40 32 40 40 40 36 36 36 36 44 44 44 36 28 Average Carried 27 | . 5 10 15 21 19 20 19 20 19 19 19 19 18 19 20 27 29 31 29 29 31 31 28 24 28 41 33 30 32 38 36 34 34 34 34 38 40 38 35 18 Final Capacity 48 | 4 10 10 24 24 20 28 20 20 20 20 20 20 32 24 20 32 32 32 24 32 32 32 28 28 48 40 32 32 40 40 36 36 36 36 36 44 44 36 36 20 Final Carried 44 | 3 10 10 22 21 20 23 20 20 20 20 20 20 15 20 19 28 31 31 21 31 31 32 24 21 40 38 32 32 38 35 35 36 34 32 35 42 44 35 27 14 Class Distribution -------------------- 22% | Hauler-Mutant 18% | Hauler-Tank 10% | Alien-Mutant 8% | Hacker-Mutant 7% | Scavenger-Tank 5% | Scavenger-Mutant 5% | Mutant 4% | Botlord-Mutant 4% | Bothacker-Mutant 3% | Scavenger-Gunner 3% | Hauler-Gunner Dominant Class ---------------- Mutant | -10/Materials Mutant | -10/Mines Hauler-Mutant | -10/Exiles Hauler-Mutant | -9/Mines Hauler-Tank | -8/Materials Hauler-Mutant | -8/Garrison Hauler-Tank | -8/Materials Hauler-Tank | -8/Garrison Hauler-Tank | -7/Factory Hauler-Mutant | -7/Garrison Hauler-Tank | -7/Factory Hauler-Tank | -7/Garrison Hauler-Mutant | -6/Factory Hauler-Mutant | -6/Waste Scavenger-Tank | -6/Factory Botlord-Tank | -6/Garrison Botlord-Tank | -6/Factory Botlord-Mutant | -6/Garrison Botlord-Mutant | -5/Factory Bothacker-Mutant | -5/Waste Bothacker-Mutant | -5/Factory Bothacker-Mutant | -5/Garrison Botlord-Mutant | -5/Factory Scavenger-Gunner | -5/Extension Scavenger-Gunner | -5/Cetus Hauler-Gunner | -5/Archives Scavenger-Tank | -5/Hub_04(d) Hauler-Mutant | -4/Factory Scavenger-Tank | -4/Waste Hauler-Mutant | -4/Factory Hauler-Mutant | -4/Armory Hauler-Tank | -4/Lab Scavenger-Tank | -3/Research Hacker-Mutant | -3/Quarantine Hacker-Mutant | -2/Research Hauler-Mutant | -2/Testing Hauler-Mutant | -2/Section 7 Hauler-Mutant | -1/Access Scavenger-Mutant | -1/Command Alien-Mutant | -1/Access_0 Resources | -11 -10 -10 -10 -9 -8 -8 -8 -8 -7 -7 -7 -7 -6 -6 -6 -6 -6 -6 -5 -5 -5 -5 -5 -5 -5 -5 -5 -4 -4 -4 -4 -4 -3 -3 -2 -2 -2 -1 -1 -1 ----------- Run | Scr Mat Min Exi Min Mat Gar Mat Gar Fac Gar Fac Gar Fac Was Fac Gar Fac Gar Fac Was Fac Gar Fac Ext Cet Arc Hub Fac Was Fac Arm Lab Res Qua Res Tes Sec Acc Com Ac0 Matter Collected 34507 | 344 691 153 80 107 1144 715 174 312 130 696 41 547 342 829 . 676 35 246 620 774 . 20 549 653 823 867 1897 . 612 1087 3387 . 759 816 207 2801 2737 1438 4233 2965 Remotely . | . . . . . . . . . . . . . . . . . . . . . . . . . . . . . . . . . . . . . . . . . Salvage Created 48238 | 157 816 177 . 343 1298 517 174 430 206 686 28 672 142 1558 . 1579 35 67 564 1844 . . 1919 1541 1154 780 4053 . 555 2536 5745 . 620 2213 1031 2378 2993 2111 4281 3035 Parts 1953 | 15 48 11 . 23 68 31 12 21 17 28 . 30 9 23 . 75 4 . 31 34 . . 66 62 64 50 171 . 6 94 208 . 31 86 36 107 135 105 98 154 Haulers Intercepted 17 | . 2 . . . 5 . . . 1 . . . . . . . . . . . . . 1 2 . . 1 . . . . . . . . 1 1 3 . . Recyclers Shooed 15 | 2 2 1 . . 1 . . . . . . . . . . . . . . . . . 4 . . . . 1 . 1 . . . 1 1 . . 1 . . Parts Field Recycled . | . . . . . . . . . . . . . . . . . . . . . . . . . . . . . . . . . . . . . . . . . Retrieved Matter . | . . . . . . . . . . . . . . . . . . . . . . . . . . . . . . . . . . . . . . . . . Parts Self-Destructed . | . . . . . . . . . . . . . . . . . . . . . . . . . . . . . . . . . . . . . . . . . Prevented . | . . . . . . . . . . . . . . . . . . . . . . . . . . . . . . . . . . . . . . . . . Kills | -11 -10 -10 -10 -9 -8 -8 -8 -8 -7 -7 -7 -7 -6 -6 -6 -6 -6 -6 -5 -5 -5 -5 -5 -5 -5 -5 -5 -4 -4 -4 -4 -4 -3 -3 -2 -2 -2 -1 -1 -1 ------- Run | Scr Mat Min Exi Min Mat Gar Mat Gar Fac Gar Fac Gar Fac Was Fac Gar Fac Gar Fac Was Fac Gar Fac Ext Cet Arc Hub Fac Was Fac Arm Lab Res Qua Res Tes Sec Acc Com Ac0 Combat Hostiles Destroyed 620 | . 23 4 . 18 22 15 4 14 5 16 . 21 . 6 . 31 . 1 9 6 . . 24 16 11 4 44 . . 33 84 . 7 27 13 30 33 21 41 37 Melee 4 | . . . . . . 1 . . . . . . . . . . . . . 1 . . . . . . . . . . 1 . . 1 . . . . . . Guns 237 | . 3 4 . 3 22 6 4 10 1 6 . 11 . 5 . 28 . 1 6 5 . . 5 12 11 4 33 . . . 44 . 5 1 . 1 . . . 6 Cannons 231 | . 4 . . 5 . 2 . . . . . . . 1 . 1 . . 1 . . . 11 . . . 5 . . 16 15 . . 13 11 26 29 21 41 29 AOE 77 | . 16 . . 10 . 6 . 4 4 10 . 10 . . . 1 . . . . . . 1 1 . . 2 . . . 8 . 1 2 . . . . . 1 Classes Destroyed 29 | 2 5 . . 3 3 1 . . 1 1 . . . 1 . 2 . . . . . . . . . 1 1 . . . 1 . . . . 4 1 . 1 1 Worker 32 | . 2 . . 1 . . . . 4 . 1 . . . . . . . . . . . 3 . . . 8 . . 3 . . 3 1 1 1 1 2 1 . Builder 18 | . . . . . . . . . 2 . . . 1 . . . . . 1 . . . . . . . 4 . . 1 . . 2 1 . 2 . 4 . . Tunneler 7 | 4 . . . . 2 . . . . . . . . . . . . . . . . . . . . . . . . . . . . . . . . 1 . . Hauler 17 | . 2 . . . 5 . . . 1 . . . . . . . . . . . . . 1 2 . . 1 . . . . . . . . 1 1 3 . . Recycler 18 | 1 2 . . 1 1 . . . 1 . . . 1 . . . . . . . . . 2 . . . 3 . . 1 . . . . . . 2 . 3 . Carrier 2 | . . . . . . . . . . . . . . . . . . . . . . . . . . . . . . . . . . . . . . . 2 . Mechanic 4 | . 1 . . . . . . . . . . . . . . . . . . . . . . . . . 1 . . . 1 . . 1 . . . . . . Operator 12 | . . . . . . . . . . . . . . . . . . . . . . . . . . 9 1 . . . 1 . . . . . 1 . . . Drone 1 | . . . . . . . . . . . . . . . . . . . . . . . . . . . . . . . . . . . . . . . . 1 Watcher 15 | . 2 . . . . . . . . . . . . . . . 1 . . . . . . 1 . . 4 . . 1 1 . . 1 . 1 2 . 1 . Swarmer 79 | . . . . 9 . 4 . 3 3 7 . 4 . . . 12 . . . . . . . . 5 . . . . . 13 . . . . 5 8 . 6 . Saboteur 3 | . . . . . . . . . . . . . . . . . . . . . . . . . . . . . . . 3 . . . . . . . . . Grunt 215 | . 23 4 . 4 11 7 2 5 2 4 . 13 . . . 11 . . 2 . . . 14 8 3 . 11 . . 13 34 . 1 10 . 10 7 10 6 . Brawler 20 | . . . . . . 1 . . . 1 . 1 . . . 2 . . . . . . . . . . 4 . . . 9 . . 1 . . . . 1 . Duelist 11 | . . . . . 1 . . . . . . . . . . 2 . 1 . . . . 2 1 . . 2 . . . 1 . . . . . . . 1 . Protector 7 | . . . . . . . . . . . . . . . . . . . . . . . . . . . 5 . . . 2 . . . . . . . . . Sentry 81 | . . . . . 8 3 2 5 . 2 . 2 . . . . . . . . . . 1 6 . 4 8 . . 8 9 . 5 6 2 . 5 3 2 . Demolisher 2 | . . . . 1 . . . . . . . . . . . . . . . . . . . . . . . . . . 1 . . . . . . . . . Specialist 8 | . . . . . . . . . . . . . . . . 2 . . . . . . . . . . . . . . 2 . . 3 . . . . 1 . Hunter 49 | . . . . . 2 . . 1 . 1 . 1 . . . 1 . . 2 . . . 2 . . . 1 . . 8 6 . . . 3 . 6 2 13 . Programmer 65 | . . . . . . . . . . 1 . . . . . . . . 5 . . . 5 . . . 1 . . 4 7 . 1 7 8 11 . 6 9 . Q-Series 3 | . . . . . . . . . . . . . . . . . . . . . . . . . . . . . . . . . . . . 2 1 . . . Behemoth 2 | . . . . . . . . . . . . . . . . 1 . . . . . . . 1 . . . . . . . . . . . . . . . . Compactor 12 | . . . . . . . . . . . . . . 6 . . . . . 6 . . . . . . . . . . . . . . . . . . . . Cetus Guard 3 | . . . . . . . . . . . . . . . . . . . . . . . . . 3 . . . . . . . . . . . . . . . S7 Guard 4 | . . . . . . . . . . . . . . . . . . . . . . . . . . . . . . . . . . . . . 4 . . . Enhanced Grunt 29 | . . . . . . . . . . . . . . . . . . . . . . . . . 3 . . . . . . . . . . . . . . 26 Enhanced Hunter 7 | . . . . . . . . . . . . . . . . . . . . . . . . . . . . . . . . . . . . . . . . 7 Lightning 12 | . . . . . . . . . . . . . . . . . . . . . . . . . . . 12 . . . . . . . . . . . . . Investigator 1 | . . . . . . . . . . . . . . . . . . . . . . . . . . . . . . . . . . . . 1 . . . . Executioner 2 | . . . . . . . . . . . . . . . . . . . . . . . . . . . . . . . . . . . . . 2 . . . Alpha 7 1 | . . . . . . . . . . . . . . . . . . . . . . . . . . . . . . . . . . . . 1 . . . . Fortress 1 | . . . . . . . . . . . . . . . . . . . . . . . . . . . . . . . . . . . . 1 . . . . Assembled 7 | . . . . 4 . . . . . . . . . . . . . . . . . . . . . . . . . . . . . . . . . . . 3 Surgeon 1 | . . . . . . . . . . . . . . . . 1 . . . . . . . . . . . . . . . . . . . . . . . . Butcher 3 | . . . . . . . . . . . . . . . . . . . . . . . . 1 2 . . . . . . . . . . . . . . . Martyr 4 | . . . . . . . . . . . . . . 2 . . . . . 2 . . . . . . . . . . . . . . . . . . . . Best Kill Streak 26 | 3 8 2 . 12 5 8 3 6 6 7 1 5 1 2 . 10 1 1 7 2 . . 7 4 5 8 26 . . 8 12 . 3 9 4 7 6 9 15 6 Combat Bots Only 20 | . 6 2 . 11 3 8 3 6 3 7 . 5 . 2 . 10 . 1 6 2 . . 4 4 5 2 20 . . 8 9 . 2 8 4 6 6 6 12 6 Max Kills in Single Turn 5 | 1 2 1 . 3 2 3 1 2 5 3 1 3 1 1 . 2 1 1 1 1 . . 2 1 3 1 5 . . 2 5 . 3 2 1 2 3 2 5 3 Gunslinging 2 | . . . . 1 1 . . . . . . . . . . 1 . . . . . . . . 1 . 2 . . . 2 . 1 . . . . . . . Exploded 3 | . 2 . . 3 . 3 . 2 1 3 . 3 . . . 1 . . . . . . 1 1 . . 2 . . . 3 . 1 2 . . . . . 1 Melee 1 | . . . . . . 1 . . . . . . . . . . . . . 1 . . . . . . . . . . 1 . . 1 . . . . . . Uniques/NPCs Destroyed 10 | . . . . . . . . . . . . . . . . . . . . . . . . . 2 . . . . . . . . . . . . . 1 7 A7 (-5/Cetus) Revision 17 (-5/Cetus) MAIN.C Shell (-1/Command) MAIN.C (-1/Command) A6 (-1/Access_0) A5 (-1/Access_0) A8 (-1/Access_0) A4 (-1/Access_0) Architect (-1/Access_0) A2 (-1/Access_0) A3 (-1/Access_0) Combat | -11 -10 -10 -10 -9 -8 -8 -8 -8 -7 -7 -7 -7 -6 -6 -6 -6 -6 -6 -5 -5 -5 -5 -5 -5 -5 -5 -5 -4 -4 -4 -4 -4 -3 -3 -2 -2 -2 -1 -1 -1 -------- Run | Scr Mat Min Exi Min Mat Gar Mat Gar Fac Gar Fac Gar Fac Was Fac Gar Fac Gar Fac Was Fac Gar Fac Ext Cet Arc Hub Fac Was Fac Arm Lab Res Qua Res Tes Sec Acc Com Ac0 Damage Taken 36762 | . 340 103 99 455 1033 349 129 499 76 310 409 786 64 49 249 2462 . 74 512 . 29 94 975 1358 412 664 1964 . . 2155 4254 . 344 1691 781 1639 1746 378 2131 8149 Core 2690 | . 25 28 15 39 135 42 32 40 . 17 17 49 . 49 8 196 . 10 38 . . 12 38 135 23 82 167 . . 83 217 . 14 107 29 154 84 . 35 770 Absorbed by Shields 12799 | . . . . . 136 122 50 197 30 122 27 . . . . 15 . . . . 10 36 117 . 91 . . . . . 1019 . 333 565 . 283 1404 333 1966 5943 Reduced by Siege Mode 1027 | . . . . . . . . . . . . . . . . . . . . . . . 23 65 4 57 83 . . 91 185 . . 75 38 . 12 . 130 264 Redirected to Core 121 | . . . . . . . . . . . . . . . . . . . . . . . . . . . . . . . . . . 2 . 119 . . . . Core Remaining (%) 70 | 100 . . . 57 . . . 54 . . . 88 . . . . . 69 . . . . . . . . 50 . . . . 73 . 89 . . 76 . . 50 Volleys Fired 2021 | 20 62 7 5 24 67 30 8 28 6 18 . 38 1 48 . 50 5 20 32 42 . . 92 55 39 35 95 3 7 94 165 . 18 150 82 115 99 40 96 325 Largest 4 | 2 2 2 2 2 3 3 3 3 3 3 . 3 1 4 . 4 4 4 4 2 . . 3 4 4 4 4 1 4 1 4 . 4 1 1 1 1 1 1 1 Hottest 300 | 40 112 46 46 112 75 189 75 86 86 89 . 92 30 184 . 184 143 148 240 56 . . 189 186 138 140 140 70 133 110 160 . 182 300 110 300 200 200 200 200 Shots Fired 3586 | 40 81 14 10 38 201 61 24 77 10 42 . 86 1 105 . 235 8 23 61 78 . . 136 139 156 139 313 3 28 94 416 . 60 150 82 115 99 40 96 325 Gun 2223 | 40 19 14 10 4 201 39 24 73 5 34 . 70 . 90 . 208 7 5 47 72 . . 45 133 156 139 297 . 28 . 333 . 54 10 . 4 . . . 62 Cannon 1163 | . 21 . . 26 . 11 . . 1 . . . . 11 . 27 1 1 1 . . . 79 2 . . 16 2 . 88 62 . 6 137 80 106 97 34 94 260 Launcher 90 | . 35 . . 8 . 4 . 4 4 8 . 16 . . . . . . . . . . . . . . . . . . 11 . . . . . . . . . Special 110 | . 6 . . . . 7 . . . . . . 1 4 . . . 17 13 6 . . 12 4 . . . 1 . 6 10 . . 3 2 5 2 6 2 3 Kinetic 2381 | 40 6 14 10 4 201 39 24 73 5 34 . 70 . 97 . 200 7 5 25 72 . . 34 48 156 139 297 . 28 . 333 . 54 . . 40 38 31 83 174 Thermal 392 | . 19 . . . . . . . . . . . . 4 . 8 . . . . . . . . . . . . . 17 2 . . 86 54 55 1 3 9 134 Explosive 79 | . 35 . . 8 . 4 . 4 4 8 . 16 . . . . . . . . . . . . . . . . . . . . . . . . . . . . Electromagnetic 630 | . 21 . . 26 . 11 . . 1 . . . . . . 27 1 1 23 . . . 90 87 . . 16 2 . 71 71 . 6 61 26 15 58 . 2 14 Robot Hit Streak 63 | 10 13 4 7 11 15 16 7 7 3 13 . 23 3 22 . 22 8 10 21 25 . . 21 48 17 55 23 17 38 23 60 . 25 21 29 41 23 24 28 63 Robot Miss Streak 14 | 1 2 2 1 1 4 7 5 4 3 4 . 8 . 5 . 12 . 3 5 3 . . 6 2 3 2 4 . 2 3 10 . 2 1 1 5 6 6 14 9 Penetration Max 3 | . . . . . . . . . . . . . . . . 1 . . . . . . . 1 1 1 2 . . 1 2 . 1 2 . 3 1 1 2 1 Secondary Targets 51 | . . 1 . 1 6 1 1 2 . . . 1 . . . 5 . . 1 1 . . . 1 4 1 12 . . . 12 . 1 . . . . . . . Max Gunslinging Chain 2 | . . 1 . 1 2 1 1 1 . . . 1 . . . 2 . . 1 1 . . . 1 1 1 2 . . . 2 . 1 . . . . . . . Capacitor 495 | . . . . . . . . . . . . . . . . . . . . . . . . . . . . . . 45 60 . . 141 80 68 15 . . 86 Autonomous 88 | . . . . . . . . . . . . . . . . 88 . . . . . . . . . . . . . . . . . . . . . . . . Shots Hit Robots 2849 | 30 36 8 9 26 142 48 19 53 5 48 . 67 3 99 . 193 1 13 50 111 . 5 120 119 107 102 233 3 21 72 331 . 45 103 69 94 88 33 82 261 Core Hits 2123 | 8 57 8 . 33 64 21 9 25 14 48 1 59 2 60 . 94 1 1 28 62 . 1 66 59 40 33 138 . 4 36 174 . 25 40 27 88 87 64 131 515 Critical Hits 875 | . . . . . 1 . . . . 1 . . . 1 . 3 . . . 1 . . . 8 17 13 54 . 4 12 49 . 7 8 4 66 64 79 139 344 Critical Kills 229 | . . . . . . . . . . . . . . 1 . . . . . . . . . 4 8 3 27 . 1 6 16 . 4 3 4 22 29 30 41 30 Critical Parts Destroyed 419 | . . . . . 1 . . . . 1 . . . . . 2 . . . . . . . 4 7 8 26 . 1 6 29 . 2 5 . 34 27 45 69 152 Melee Attacks 214 | . . . . . . 5 . . 1 15 . 1 16 2 15 7 2 2 6 33 . 8 6 10 . . 3 . . 6 19 4 15 3 . 7 28 . . . Kinetic 35 | . . . . . . . . . . . . . . . . . . . . . . . . . . . . . . . . . . . . 7 28 . . . Impact . | . . . . . . . . . . . . . . . . . . . . . . . . . . . . . . . . . . . . . . . . . Slashing 179 | . . . . . . 5 . . 1 15 . 1 16 2 15 7 2 2 6 33 . 8 6 10 . . 3 . . 6 19 4 15 3 . . . . . . Piercing . | . . . . . . . . . . . . . . . . . . . . . . . . . . . . . . . . . . . . . . . . . Sneak Attacks 45 | . . . . . . 3 . . . . . . 2 2 . . . . 1 33 . . 1 1 . . . . . . 1 . . 1 . . . . . . Combat Hostiles 31 | . . . . . . . . . . . . . . . . . . . . 31 . . . . . . . . . . . . . . . . . . . . Follow-up Attacks . | . . . . . . . . . . . . . . . . . . . . . . . . . . . . . . . . . . . . . . . . . Damage Inflicted 112128 | 290 2609 130 126 1212 2315 1500 241 1232 1084 2826 41 2308 178 3167 . 4552 23 43 1123 4109 . 153 3693 2950 3170 2796 8510 109 585 4117 12378 . 1592 5421 2932 2687 1690 627 5533 24076 Guns 44198 | 290 180 114 126 58 2236 520 241 804 15 578 . 832 . 2701 . 3935 23 22 1007 2497 . . 838 2505 3170 2796 6435 . 585 . 7857 . 1135 324 . 159 . . . 2215 Cannons 40637 | . 264 . . 455 . 215 . . . . . . . 289 . 521 . . 20 . . . 2051 106 . . 889 109 . 3912 2821 . 132 4136 2889 2210 1485 455 4651 13027 Explosions 22104 | . 2141 . . 691 . 492 . 428 1037 1284 . 1476 . . . 96 . . . . . . 667 179 . . 1186 . . 205 1481 . 301 674 . 82 95 . 771 8818 Melee 4275 | . . . . . . 273 . . . 964 . . 178 177 . . . 21 96 1612 . 153 93 150 . . . . . . 188 . . 246 . 124 . . . . Ramming 914 | . 24 16 . 8 79 . . . 32 . 41 . . . . . . . . . . . 44 10 . . . . . . 31 . 24 41 43 112 110 172 111 16 Kinetic 48596 | 290 77 114 126 58 2236 520 241 804 15 578 . 832 . 2884 . 3831 23 22 618 2497 . . 932 1156 3170 2796 6435 . 585 . 7857 . 1135 . . 799 334 455 3450 3726 Thermal 31210 | . 345 . . 25 . 104 . . . . . . . 106 . 200 . . . . . . 667 179 . . . . . 583 442 . . 3056 2061 1285 95 . 1955 20107 Explosive 7684 | . 1899 . . 666 . 388 . 428 1037 1284 . 1476 . . . . . . . . . . . . . . . . . 205 . . 301 . . . . . . . Electromagnetic 19573 | . 264 . . 455 . 215 . . . . . . . . . 521 . . 409 . . . 1957 1455 . . 2075 109 . 3329 3860 . 132 2078 828 491 1151 . 17 227 Impact . | . . . . . . . . . . . . . . . . . . . . . . . . . . . . . . . . . . . . . . . . . Slashing 4151 | . . . . . . 273 . . . 964 . . 178 177 . . . 21 96 1612 . 153 93 150 . . . . . . 188 . . 246 . . . . . . Piercing . | . . . . . . . . . . . . . . . . . . . . . . . . . . . . . . . . . . . . . . . . . Highest Corruption 15 | . . . . . . . 2 2 . 1 3 3 . . . . . . . . . . 5 5 5 5 6 . . 2 7 7 . 15 . 4 . . . . Average Corruption 3 | . . . . . . . 2 2 . 1 2 3 . . . . . . . . . . 1 5 5 5 5 . . 2 5 4 . 4 . 1 . . . . Corruption Purged 18 | . . . . . . . . . . . . . . . . . . . . . . . . . . . . . . . . 7 . . . 11 . . . . Effects 316 | . . . . . . . . 5 . 3 5 14 . . . . . . . . . . 5 53 28 32 44 . . 1 75 11 . 27 . 13 . . . . Message Errors 60 | . . . . . . . . 1 . 2 . 5 . . . . . . . . . . 1 10 . 8 5 . . . 13 1 . 7 . 7 . . . . Matter Fused 62 | . . . . . . . . . . . 1 3 . . . . . . . . . . 1 15 4 5 7 . . . 16 4 . 4 . 2 . . . . Heat Flow Errors 28 | . . . . . . . . . . . 1 1 . . . . . . . . . . . 7 5 2 4 . . . 2 2 . 3 . 1 . . . . Energy Discharges 38 | . . . . . . . . 2 . 1 2 1 . . . . . . . . . . . 6 4 2 7 . . . 6 1 . 5 . 1 . . . . Parts Rejected 4 | . . . . . . . . . . . . . . . . . . . . . . . . 3 . . . . . . 1 . . . . . . . . . Data Loss (minor) 29 | . . . . . . . . . . . 1 2 . . . . . . . . . . 1 2 4 2 2 . . . 9 3 . 1 . 2 . . . . Data Loss (major) 2 | . . . . . . . . . . . . . . . . . . . . . . . . 1 . . . . . . . . . 1 . . . . . . Misfires 9 | . . . . . . . . . . . . . . . . . . . . . . . . 1 2 3 1 . . . 2 . . . . . . . . . Alerts 1 | . . . . . . . . . . . . . . . . . . . . . . . . . . . . . . . . . . 1 . . . . . . Targeting Errors 74 | . . . . . . . . 1 . . . 1 . . . . . . . . . . 2 8 7 9 15 . . 1 25 . . 5 . . . . . . Weapon Failures 9 | . . . . . . . . 1 . . . 1 . . . . . . . . . . . . 2 1 3 . . . 1 . . . . . . . . . Overload Shots . | . . . . . . . . . . . . . . . . . . . . . . . . . . . . . . . . . . . . . . . . . Overflow Damage 2510 | . 147 . . 14 12 6 . . 95 78 . 23 . . . 24 . . 56 . . . 134 60 . . 58 49 . 102 93 . 12 241 133 98 16 4 232 823 Projectiles 1164 | . 3 . . . . . . . . . . . . . . 24 . . . . . . 20 . . . 49 49 . 102 75 . . 46 133 70 1 . 176 416 Explosions 969 | . 144 . . 14 . . . . 95 25 . 23 . . . . . . . . . . 114 . . . 9 . . . 18 . 12 44 . 26 . . 38 407 Melee 377 | . . . . . 12 6 . . . 53 . . . . . . . . 56 . . . . 60 . . . . . . . . . 151 . 2 15 4 18 . Knockbacks 133 | . . . . . . . . . 1 . . . . . . . . . 1 . . . 19 . . . . . . . . . . . . 18 12 12 30 40 Impact 3 | . . . . . . . . . 1 . . . . . . . . . . . . . . . . . . . . . . . . . . 1 . 1 . . Kinetic 128 | . . . . . . . . . . . . . . . . . . . 1 . . . 17 . . . . . . . . . . . . 17 12 11 30 40 Secondary 2 | . . . . . . . . . . . . . . . . . . . . . . . 2 . . . . . . . . . . . . . . . . . Self-Inflicted Damage 700 | . 36 . . . . 17 . . . 20 . 37 . . . . . . . . . . 88 37 . . 29 . . 116 70 . . 74 . . . . . 176 Shots 24 | . 2 . . . . 1 . . . 1 . 2 . . . . . . . . . . 1 1 . . 3 . . 2 4 . . 1 . . . . . 6 Rammed 55 | . 11 6 . . 5 . . . 2 . 1 . . . . . . . . . . . 5 1 . . . . . . 1 . 2 3 1 3 3 7 3 1 Targets Rammed 63 | . 11 6 . 1 5 . . . 4 . 1 . . . . . . . . . . . 5 1 . . . . . . 2 . 2 3 1 5 3 8 4 1 Kicked . | . . . . . . . . . . . . . . . . . . . . . . . . . . . . . . . . . . . . . . . . . Crushed 8 | . . . . 1 . . . . 2 . . . . . . . . . . . . . . . . . . . . . 1 . . . . 2 . 1 1 . Highest Temperature 451 | . 208 28 12 185 135 190 112 103 56 92 127 161 2 249 5 432 44 66 218 156 . . 270 356 395 196 286 112 338 336 451 161 246 250 282 293 351 . 42 296 Average Temperature 88 | . 48 15 6 66 40 68 48 39 24 37 66 62 2 108 5 113 33 15 73 101 . . 98 72 109 90 115 61 171 98 103 87 81 111 117 113 92 . 10 118 Received Heat Transfer 4513 | . 183 57 . 42 282 153 54 174 . 86 . 219 . . 18 573 . 24 21 . . 24 207 246 4 99 357 . . 363 656 . 42 111 9 136 78 42 40 213 Effects 14 | . . . . . . . . . . . . . . . . 1 . . 1 . . . 3 . . . . . . 3 5 . . . . 1 . . . . Shutdowns 1 | . . . . . . . . . . . . . . . . . . . . . . . . . . . . . . . 1 . . . . . . . . . Energy Bleed 4 | . . . . . . . . . . . . . . . . . . . 1 . . . 1 . . . . . . . 1 . . . . 1 . . . . Interference 6 | . . . . . . . . . . . . . . . . . . . . . . . 2 . . . . . . 3 1 . . . . . . . . . Matter Decay 2 | . . . . . . . . . . . . . . . . . . . . . . . . . . . . . . . 2 . . . . . . . . . Short Circuit 1 | . . . . . . . . . . . . . . . . 1 . . . . . . . . . . . . . . . . . . . . . . . . Siege Activations 65 | . . . . . . . . . . . . . . . . 1 . . . . . . 5 5 2 3 9 . . 5 10 . . 4 5 . 2 1 3 10 Total Turns 1431 | . . . . . . . . . . . . . . . . 15 . . . . . . 117 74 6 237 229 . . 57 156 . . 52 114 . 27 6 110 231 Longest Duration 152 | . . . . . . . . . . . . . . . . 15 . . . . . . 46 32 4 152 71 . . 18 41 . . 23 87 . 24 6 78 101 Robots Corrupted 70 | . . . . . . . . . . . . . . . . 1 . . 2 . . . 8 3 . . 4 . . 17 16 . 1 10 2 1 4 . . 1 Combat Hostiles 68 | . . . . . . . . . . . . . . . . 1 . . 2 . . . 7 3 . . 4 . . 17 16 . 1 10 2 . 4 . . 1 Parts Fried 173 | . 1 . . 1 . . . . . . . . . . . 2 . . 4 . . . 14 9 . . 21 . . 41 34 . 2 22 2 3 9 . . 8 Impact Corruptions 6 | . . . . . 1 . . . . . . . . . . . . . . . . . . . . . . . . . . . . . . 1 1 1 2 . Robots Melted 1 | . . . . . . . . . . . . . . . . . . . . . . . . . . . . . . . . . . . . 1 . . . . Combat Hostiles 1 | . . . . . . . . . . . . . . . . . . . . . . . . . . . . . . . . . . . . 1 . . . . Parts Melted 36 | . 1 . . 1 . . . . . . . . . . . . . 1 . . . . . . . . . . . 1 1 . . 2 21 8 . . . . Heat Transferred 13702 | . 496 . . 50 . 100 . . . . . . . 250 . 350 . . . . . . 500 150 . . . . . 300 400 . . 2333 2350 1550 80 . 268 4525 Parts Sabotaged 4 | . . . . . . . . . . . . . . . . . . . . . . . . . . . . . . . 4 . . . . . . . . . Parts Stolen . | . . . . . . . . . . . . . . . . . . . . . . . . . . . . . . . . . . . . . . . . . Parts Stripped . | . . . . . . . . . . . . . . . . . . . . . . . . . . . . . . . . . . . . . . . . . Power Chain Reactions 14 | . . . . 1 . 1 . . . . . . . . . 1 . . . . . . 3 1 . . . . . . 4 . . 2 . 1 . . . . Missiles Intercepted 2 | . . . . . . . . . . . . . . . . . . . . . . . . . . . . . . . . . . . . . . . 2 . Alert | -11 -10 -10 -10 -9 -8 -8 -8 -8 -7 -7 -7 -7 -6 -6 -6 -6 -6 -6 -5 -5 -5 -5 -5 -5 -5 -5 -5 -4 -4 -4 -4 -4 -3 -3 -2 -2 -2 -1 -1 -1 ------- Run | Scr Mat Min Exi Min Mat Gar Mat Gar Fac Gar Fac Gar Fac Was Fac Gar Fac Gar Fac Was Fac Gar Fac Ext Cet Arc Hub Fac Was Fac Arm Lab Res Qua Res Tes Sec Acc Com Ac0 Peak Influence 2344 | 25 689 338 . 354 466 772 376 551 596 869 455 813 492 252 61 932 528 419 243 1100 807 1134 946 420 640 473 2344 1078 377 626 1666 . 282 523 354 514 579 689 440 . Average Influence 402 | 17 364 277 . 175 320 613 320 454 385 773 434 470 442 147 53 619 495 386 151 724 655 872 615 174 407 374 836 1078 286 201 837 . 85 232 147 206 210 427 297 . Maximum Alert Level 5 | . 2 1 . 1 2 3 1 2 2 3 2 3 2 1 . 3 2 2 1 4 3 4 3 2 2 2 5 3 1 2 5 . 1 2 1 2 2 2 3 . Low Security (%) 30 | 100 18 . . 83 14 . . . 2 . . 5 . 66 100 8 . . 45 13 . . . 67 6 . 16 . 45 60 26 . 94 45 82 54 53 7 9 . Level 1 29 | . 38 100 . 16 79 9 100 28 60 . 7 38 . 33 . 22 . 67 54 6 . . 5 26 39 49 6 . 54 27 4 . 5 43 17 29 32 33 17 . Level 2 25 | . 42 . . . 6 63 . 71 37 17 92 41 100 . . 16 100 32 . 7 67 31 76 6 54 50 28 . . 12 7 . . 11 . 16 14 59 10 . Level 3 13 | . . . . . . 27 . . . 82 . 14 . . . 53 . . . 73 32 47 18 . . . 24 100 . . 16 . . . . . . . 63 . Level 4 2 | . . . . . . . . . . . . . . . . . . . . . . 20 . . . . 10 . . . 40 . . . . . . . . . Level 5 . | . . . . . . . . . . . . . . . . . . . . . . . . . . . 13 . . . 5 . . . . . . . . . High Security . | . . . . . . . . . . . . . . . . . . . . . . . . . . . . . . . . . . . . . . . . . Max Security . | . . . . . . . . . . . . . . . . . . . . . . . . . . . . . . . . . . . . . . . . . Squads Dispatched 84 | . 9 . . . 3 . 3 . 1 . . . . . . . 1 . 3 . . . 9 1 . . 8 . . 3 10 . 1 6 2 8 8 8 . . Investigation 15 | . 6 . . . 2 . . . . . . . . . . . . . . . . . 2 1 . . . . . . 1 . 1 . . . 1 1 . . Extermination 26 | . . . . . . . . . 1 . . . . . . . . . 1 . . . 2 . . . . . . 2 4 . . 3 2 5 4 2 . . Reinforcement 21 | . 3 . . . . . 1 . . . . . . . . . . . 1 . . . 3 . . . 1 . . 1 2 . . 3 . 2 3 1 . . Assault 10 | . . . . . . . . . . . . . . . . . . . 1 . . . 2 . . . 3 . . . 3 . . . . 1 . . . . Garrison 12 | . . . . . 1 . 2 . . . . . . . . . 1 . . . . . . . . . 4 . . . . . . . . . . 4 . . Intercept . | . . . . . . . . . . . . . . . . . . . . . . . . . . . . . . . . . . . . . . . . . Construction Impeded 4 | . . . . . . . . . . . . . . . . . . . 1 . . . 1 . . . 1 . . . . . . 1 . . . . . . Haulers Reinforced 2 | . . . . . . . . . . . . . . . . . . . . . . . 1 . . . . . . . . . . . . . . 1 . . Alert ID Control Effect 2 | . . . . . . . . . . . . . . . . . . 2 . . . . . . . . . . . . . . . . . . . . . . Stealth | -11 -10 -10 -10 -9 -8 -8 -8 -8 -7 -7 -7 -7 -6 -6 -6 -6 -6 -6 -5 -5 -5 -5 -5 -5 -5 -5 -5 -4 -4 -4 -4 -4 -3 -3 -2 -2 -2 -1 -1 -1 --------- Run | Scr Mat Min Exi Min Mat Gar Mat Gar Fac Gar Fac Gar Fac Was Fac Gar Fac Gar Fac Was Fac Gar Fac Ext Cet Arc Hub Fac Was Fac Arm Lab Res Qua Res Tes Sec Acc Com Ac0 Distress Signals 50 | . 4 . . . 1 . 1 . . . . . . . . . . . . . . . 1 2 2 2 2 . . 3 6 . . 1 1 3 2 2 17 . Communications Jammed . | . . . . . . . . . . . . . . . . . . . . . . . . . . . . . . . . . . . . . . . . . Distress Signals . | . . . . . . . . . . . . . . . . . . . . . . . . . . . . . . . . . . . . . . . . . Times Spotted 894 | . 34 4 1 20 38 15 6 21 7 25 . 23 4 5 1 36 1 10 15 4 3 15 41 32 23 21 53 . . 39 100 . 9 40 18 43 47 35 29 76 Peak Tracking Total 12 | . 5 2 2 6 4 5 3 6 3 7 . 7 4 2 1 11 1 5 5 2 2 7 5 4 5 2 12 . . 7 10 . 3 7 4 5 6 4 5 6 Tactical Retreats 53 | . 2 . . . 2 1 . 4 2 8 . 2 . . . 5 . . . . . . 2 5 1 . 2 . . . 5 . 1 2 . 1 5 . . 3 Traps | -11 -10 -10 -10 -9 -8 -8 -8 -8 -7 -7 -7 -7 -6 -6 -6 -6 -6 -6 -5 -5 -5 -5 -5 -5 -5 -5 -5 -4 -4 -4 -4 -4 -3 -3 -2 -2 -2 -1 -1 -1 ------- Run | Scr Mat Min Exi Min Mat Gar Mat Gar Fac Gar Fac Gar Fac Was Fac Gar Fac Gar Fac Was Fac Gar Fac Ext Cet Arc Hub Fac Was Fac Arm Lab Res Qua Res Tes Sec Acc Com Ac0 Traps Triggered 34 | . 2 . . . . 5 1 1 . . 1 . 1 . . 2 . . 3 . . . 1 3 . . . 1 . 1 2 . . 2 2 1 3 . 2 . Indirectly . | . . . . . . . . . . . . . . . . . . . . . . . . . . . . . . . . . . . . . . . . . Trap Hack Attempts . | . . . . . . . . . . . . . . . . . . . . . . . . . . . . . . . . . . . . . . . . . Triggered . | . . . . . . . . . . . . . . . . . . . . . . . . . . . . . . . . . . . . . . . . . Disarmed . | . . . . . . . . . . . . . . . . . . . . . . . . . . . . . . . . . . . . . . . . . Reprogrammed . | . . . . . . . . . . . . . . . . . . . . . . . . . . . . . . . . . . . . . . . . . Reused . | . . . . . . . . . . . . . . . . . . . . . . . . . . . . . . . . . . . . . . . . . Traps Extracted . | . . . . . . . . . . . . . . . . . . . . . . . . . . . . . . . . . . . . . . . . . Installed . | . . . . . . . . . . . . . . . . . . . . . . . . . . . . . . . . . . . . . . . . . Triggered 1 | . . . . . . . . . . . . . . . . . . . . . . . . . . . . . . . . . . 1 . . . . . . Exploded 2 | . . . 1 1 . . . . . . . . . . . . . . . . . . . . . . . . . . . . . . . . . . . . Machines | -11 -10 -10 -10 -9 -8 -8 -8 -8 -7 -7 -7 -7 -6 -6 -6 -6 -6 -6 -5 -5 -5 -5 -5 -5 -5 -5 -5 -4 -4 -4 -4 -4 -3 -3 -2 -2 -2 -1 -1 -1 ---------- Run | Scr Mat Min Exi Min Mat Gar Mat Gar Fac Gar Fac Gar Fac Was Fac Gar Fac Gar Fac Was Fac Gar Fac Ext Cet Arc Hub Fac Was Fac Arm Lab Res Qua Res Tes Sec Acc Com Ac0 Machines Disabled 155 | . 9 . 1 . 1 1 . . 16 1 . 3 . . . 3 . 2 . . . 2 5 3 2 6 26 . . 9 9 1 2 6 . 7 27 1 2 10 Max in Single Turn 20 | . 5 . 1 . 1 1 . . 9 1 . 1 . . . 1 . 1 . . . 1 4 1 1 1 16 . . 2 1 1 1 1 . 1 20 1 1 1 Garrison Access 5 | . . . . . . . . . . . . . . . . . . . 1 . . . . . . . 1 . . . . . 2 . 1 . . . . . Garrison Relay 11 | . . . . . . 1 . . . 1 . 2 . . . 3 . 2 . . . 2 . . . . . . . . . . . . . . . . . . Phase Generator 1 | . . . . . . . . . . . . 1 . . . . . . . . . . . . . . . . . . . . . . . . . . . . Network Hub 3 | . . . . . . . . . . . . . . . . . . . . . . . . . . . 3 . . . . . . . . . . . . . Machines Sabotaged . | . . . . . . . . . . . . . . . . . . . . . . . . . . . . . . . . . . . . . . . . . Garrisons Compromised . | . . . . . . . . . . . . . . . . . . . . . . . . . . . . . . . . . . . . . . . . . Overloaded Fab Kills . | . . . . . . . . . . . . . . . . . . . . . . . . . . . . . . . . . . . . . . . . . Fab Network Shutdowns . | . . . . . . . . . . . . . . . . . . . . . . . . . . . . . . . . . . . . . . . . . Hacking | -11 -10 -10 -10 -9 -8 -8 -8 -8 -7 -7 -7 -7 -6 -6 -6 -6 -6 -6 -5 -5 -5 -5 -5 -5 -5 -5 -5 -4 -4 -4 -4 -4 -3 -3 -2 -2 -2 -1 -1 -1 --------- Run | Scr Mat Min Exi Min Mat Gar Mat Gar Fac Gar Fac Gar Fac Was Fac Gar Fac Gar Fac Was Fac Gar Fac Ext Cet Arc Hub Fac Was Fac Arm Lab Res Qua Res Tes Sec Acc Com Ac0 Machines Accessed 106 | . 8 . 1 . 8 . 3 . 4 . 3 . 2 . 3 . 1 . 1 . 1 . 1 11 4 . 2 1 . 1 4 . 7 10 2 8 15 4 1 . Terminals 77 | . 5 . . . 4 . 2 . 2 . . . 1 . 2 . . . 1 . . . 1 11 4 . 2 . . 1 4 . 4 8 1 7 13 3 1 . Fabricators 5 | . . . . . . . . . 1 . 2 . . . . . . . . . . . . . . . . 1 . . . . . . . 1 . . . . Repair Stations 2 | . 1 . . . . . . . . . . . 1 . . . . . . . . . . . . . . . . . . . . . . . . . . . Recycling Units 3 | . 2 . . . 1 . . . . . . . . . . . . . . . . . . . . . . . . . . . . . . . . . . . Scanalyzers 7 | . . . . . 2 . . . . . . . . . . . . . . . . . . . . . . . . . . . 1 2 . . 2 . . . Garrison Access 11 | . . . . . 1 . 1 . 1 . 1 . . . 1 . 1 . . . 1 . . . . . . . . . . . 2 . 1 . . 1 . . Total Hacks 428 | . 26 . 1 . 23 . 9 . 9 . 7 . 4 . 8 . 3 . 2 . 2 . 5 31 6 . 8 2 . 7 24 . 43 55 7 52 65 23 6 . Successful 221 | . 14 . 1 . 9 . 6 . 5 . 6 . 4 . 4 . 3 . 1 . 2 . 2 14 2 . 5 . . 5 7 . 24 27 5 23 35 13 4 . Failed 205 | . 11 . . . 14 . 3 . 4 . 1 . . . 4 . . . 1 . . . 3 17 4 . 3 2 . 2 17 . 18 28 2 29 30 10 2 . Catastrophic 34 | . 1 . . . 2 . 1 . . . . . . . . . . . 1 . . . . 4 2 . . . . . 5 . 3 4 . 1 7 3 . . Database Lockouts 2 | . 1 . . . . . . . . . . . . . . . . . . . . . . . . . . . . . . . 1 . . . . . . . Manual 191 | . 17 . 1 . 8 . 2 . 4 . . . . . . . 1 . 1 . . . 4 10 7 . 5 . . 2 15 . 14 26 5 20 35 10 4 . Terminals 344 | . 20 . . . 13 . 7 . 6 . . . 2 . 6 . . . 2 . . . 5 31 6 . 8 . . 7 24 . 28 43 5 47 58 20 6 . Fabricators 13 | . . . . . . . . . 1 . 5 . . . . . . . . . . . . . . . . 2 . . . . . . . 5 . . . . Repair Stations 5 | . 3 . . . . . . . . . . . 2 . . . . . . . . . . . . . . . . . . . . . . . . . . . Recycling Units 5 | . 3 . . . 2 . . . . . . . . . . . . . . . . . . . . . . . . . . . . . . . . . . . Scanalyzers 36 | . . . . . 5 . . . . . . . . . . . . . . . . . . . . . . . . . . . 12 12 . . 7 . . . Garrison Access 24 | . . . . . 3 . 2 . 2 . 2 . . . 2 . 3 . . . 2 . . . . . . . . . . . 3 . 2 . . 3 . . Terminal Hacks 117 | . 6 . 1 . 3 . 3 . 3 . . . 2 . 2 . . . . . . . 2 10 1 . 3 . . 5 4 . 10 14 1 14 20 10 3 . Part Schematic 7 | . 1 . . . . . . . . . . . . . . . . . . . . . . 1 . . . . . . 2 . . 1 . 1 . 1 . . Robot Schematic 2 | . . . . . . . . . . . . . . . . . . . . . . . . 1 . . . . . . . . . . . 1 . . . . Robot Analysis 8 | . 1 . . . . . 2 . 1 . . . . . . . . . . . . . . . . . . . . . . . 1 3 . . . . . . Prototype ID Bank 10 | . 3 . . . 1 . . . 1 . . . . . . . . . . . . . . 1 . . . . . . . . . 1 . 1 1 1 . . Open Door 15 | . . . . . . . . . . . . . . . . . . . . . . . 1 5 . . . . . . . . 1 . . 1 5 1 1 . Level Access Points 4 | . . . . . . . . . . . . . 1 . . . . . . . . . . . . . 1 . . . . . . 1 . . 1 . . . Branch Access Points 5 | . . . . . 1 . . . . . . . . . . . . . . . . . . . . . . . . 1 . . 1 . 1 . . 1 . . Emergency Access Points 1 | . . . . . . . . . . . . . . . . . . . . . . . . . . . 1 . . . . . . . . . . . . . Machine Index 1 | . . . . . . . . . . . . . . . . . . . . . . . . . . . . . . . . . 1 . . . . . . . Terminal Index 3 | . . . . . . . . . . . . . . . . . . . . . . . . 1 . . . . . . . . . . . 1 1 . . . Fabricator Index 1 | . . . . . . . . . . . . . . . . . . . . . . . . . . . . . . . . . 1 . . . . . . . Garrison Index 4 | . . . . . . . . . . . . . . . 1 . . . . . . . . . . . . . . 1 . . . . . 1 1 . . . Unreport Threat 22 | . . . . . . . 1 . . . . . . . . . . . . . . . 1 1 1 . . . . 1 1 . 1 3 . 1 5 4 2 . Locate Traps 8 | . . . . . . . . . 1 . . . . . 1 . . . . . . . . . . . . . . 1 . . 1 1 . 1 1 1 . . Dispatch Records 2 | . . . . . . . . . . . . . . . . . . . . . . . . . . . . . . . . . . . . 1 1 . . . Security Status 1 | . . . . . . . . . . . . . . . . . . . . . . . . . . . . . . . . . . . . 1 . . . . Patrol Status 2 | . . . . . . . . . . . . . . . . . . . . . . . . . . . 1 . . . . . 1 . . . . . . . Reinforcement Status 1 | . . . . . . . . . . . . . . . . . . . . . . . . . . . . . . . . . 1 . . . . . . . Recall Investigation 1 | . 1 . . . . . . . . . . . . . . . . . . . . . . . . . . . . . . . . . . . . . . . Recall Extermination 4 | . . . . . . . . . . . . . . . . . . . . . . . . . . . . . . . . . . 1 . . 3 . . . Recall Reinforcements 2 | . . . . . . . . . . . . . . . . . . . . . . . . . . . . . . . . . . . . 1 1 . . . Registered Components 3 | . . . . . . . . . . . . . . . . . . . . . . . . . . . . . . 1 1 . 1 . . . . . . . Zone Layout 9 | . . . . . 1 . . . . . . . 1 . . . . . . . . . . . . . . . . . . . . 3 . 3 . 1 . . EX-Prototype ID Bank 1 | . . . 1 . . . . . . . . . . . . . . . . . . . . . . . . . . . . . . . . . . . . . Fabricator Hacks 6 | . . . . . . . . . . . 4 . . . . . . . . . . . . . . . . . . . . . . . . 2 . . . . Load Schematic 3 | . . . . . . . . . . . 2 . . . . . . . . . . . . . . . . . . . . . . . . 1 . . . . Build 3 | . . . . . . . . . . . 2 . . . . . . . . . . . . . . . . . . . . . . . . 1 . . . . Repair Station Hacks 4 | . 2 . . . . . . . . . . . 2 . . . . . . . . . . . . . . . . . . . . . . . . . . . Scan Component 2 | . 1 . . . . . . . . . . . 1 . . . . . . . . . . . . . . . . . . . . . . . . . . . Repair 2 | . 1 . . . . . . . . . . . 1 . . . . . . . . . . . . . . . . . . . . . . . . . . . Recycling Unit Hacks 1 | . 1 . . . . . . . . . . . . . . . . . . . . . . . . . . . . . . . . . . . . . . . Report Inventory 1 | . 1 . . . . . . . . . . . . . . . . . . . . . . . . . . . . . . . . . . . . . . . Scanalyzer 21 | . . . . . 4 . . . . . . . . . . . . . . . . . . . . . . . . . . . 7 8 . . 2 . . . Insert Component 14 | . . . . . 2 . . . . . . . . . . . . . . . . . . . . . . . . . . . 7 4 . . 1 . . . Analyze 7 | . . . . . 2 . . . . . . . . . . . . . . . . . . . . . . . . . . . . 4 . . 1 . . . Garrison Access Hacks 17 | . . . . . 1 . 2 . 1 . 2 . . . 2 . 2 . . . 2 . . . . . . . . . . . 3 . 1 . . 1 . . Unlock Access 7 | . . . . . 1 . 1 . 1 . 1 . . . 1 . 1 . . . 1 . . . . . . . . . . . . . . . . . . . Seal Access 3 | . . . . . . . . . . . . . . . . . . . . . . . . . . . . . . . . . 2 . 1 . . . . . Coupler Status 7 | . . . . . . . 1 . . . 1 . . . 1 . 1 . . . 1 . . . . . . . . . . . 1 . . . . 1 . . Unauthorized Hacks 141 | . 13 . . . 5 . 3 . 4 . . . . . . . 2 . 2 . . . . 8 4 . 6 . . . 9 . 10 11 8 18 30 5 3 . Terminals 46 | . 3 . . . 1 . 1 . . . . . . . . . . . 1 . . . . 4 1 . 2 . . . 3 . 4 4 2 7 11 1 1 . Track 27 | . . . . . 1 . 1 . . . . . . . . . . . . . . . . 1 1 . 1 . . . 2 . 1 4 1 5 8 . 1 . Assimilate 1 | . . . . . . . . . . . . . . . . . . . . . . . . . . . . . . . . . . . 1 . . . . . Botnet 12 | . 2 . . . . . . . . . . . . . . . . . 1 . . . . 3 . . 1 . . . 1 . 1 . . 1 1 1 . . Detonate 2 | . . . . . . . . . . . . . . . . . . . . . . . . . . . . . . . . . 1 . . . 1 . . . Disrupt 2 | . . . . . . . . . . . . . . . . . . . . . . . . . . . . . . . . . . . . 1 1 . . . Operators 2 | . 1 . . . . . . . . . . . . . . . . . . . . . . . . . . . . . . . 1 . . . . . . . Fabricators . | . . . . . . . . . . . . . . . . . . . . . . . . . . . . . . . . . . . . . . . . . Repair Stations . | . . . . . . . . . . . . . . . . . . . . . . . . . . . . . . . . . . . . . . . . . Recycling Units 2 | . 2 . . . . . . . . . . . . . . . . . . . . . . . . . . . . . . . . . . . . . . . Tunnel 2 | . 2 . . . . . . . . . . . . . . . . . . . . . . . . . . . . . . . . . . . . . . . Scanalyzers 3 | . . . . . . . . . . . . . . . . . . . . . . . . . . . . . . . . . . 1 . . 2 . . . Researchers 3 | . . . . . . . . . . . . . . . . . . . . . . . . . . . . . . . . . . 1 . . 2 . . . Garrison Access 4 | . . . . . . . . . 1 . . . . . . . 1 . . . . . . . . . . . . . . . . . 1 . . 1 . . Reprogram 2 | . . . . . . . . . 1 . . . . . . . 1 . . . . . . . . . . . . . . . . . . . . . . . Watchers 1 | . . . . . . . . . . . . . . . . . . . . . . . . . . . . . . . . . . . 1 . . . . . Eject 1 | . . . . . . . . . . . . . . . . . . . . . . . . . . . . . . . . . . . . . . 1 . . Data Cores Recovered 2 | . . . . . . . . . . . . . . . 1 . . . . . . . . . . . . . . . . . . . . . 1 . . . Used 1 | . . . . . . . . . . . . . . . 1 . . . . . . . . . . . . . . . . . . . . . . . . . Hacking Detections 89 | . 6 . . . 7 . 3 . 4 . 3 . 2 . 3 . 1 . 1 . 1 . 1 11 4 . 2 1 . 1 4 . 3 8 1 7 10 4 1 . Full Trace Events 8 | . 4 . . . 2 . . . . . . . . . . . . . . . . . . 1 . . . . . . . . . . . . 1 . . . Feedback Events . | . . . . . . . . . . . . . . . . . . . . . . . . . . . . . . . . . . . . . . . . . Feedback Blocked . | . . . . . . . . . . . . . . . . . . . . . . . . . . . . . . . . . . . . . . . . . Robot Schematics Acquired 2 | . . . . . . . . . . . . . . . . . . . . . . . . 1 . . . . . . . . . . . 1 . . . . Robots Built . | . . . . . . . . . . . . . . . . . . . . . . . . . . . . . . . . . . . . . . . . . Matter . | . . . . . . . . . . . . . . . . . . . . . . . . . . . . . . . . . . . . . . . . . Time . | . . . . . . . . . . . . . . . . . . . . . . . . . . . . . . . . . . . . . . . . . Total Robot Build Rating . | . . . . . . . . . . . . . . . . . . . . . . . . . . . . . . . . . . . . . . . . . Part Schematics Acquired 12 | . 1 . . . 1 . . . . . . . . . . . . . . . . . . 1 . . . . . . 2 . . 4 . 1 1 1 . . Parts Built 6 | . . . . . . . . . . . 4 . . . . . . . . . . . . . . . . . . . . . . . . 2 . . . . Matter 438 | . . . . . . . . . . . 292 . . . . . . . . . . . . . . . . . . . . . . . . 146 . . . . Time 96 | . . . . . . . . . . . 72 . . . . . . . . . . . . . . . . . . . . . . . . 24 . . . . Total Part Build Rating 18 | . . . . . . . . . . . 12 . . . . . . . . . . . . . . . . . . . . . . . . 6 . . . . Parts Repaired 2 | . 1 . . . . . . . . . . . 1 . . . . . . . . . . . . . . . . . . . . . . . . . . . Time 70 | . 26 . . . . . . . . . . . 44 . . . . . . . . . . . . . . . . . . . . . . . . . . . Parts Recycled . | . . . . . . . . . . . . . . . . . . . . . . . . . . . . . . . . . . . . . . . . . Recycled Matter . | . . . . . . . . . . . . . . . . . . . . . . . . . . . . . . . . . . . . . . . . . Retrieved Matter . | . . . . . . . . . . . . . . . . . . . . . . . . . . . . . . . . . . . . . . . . . Retrieved Components . | . . . . . . . . . . . . . . . . . . . . . . . . . . . . . . . . . . . . . . . . . Parts Scanalyzed 6 | . . . . . 2 . . . . . . . . . . . . . . . . . . . . . . . . . . . . 3 . . 1 . . . Part Schematics Acquired 5 | . . . . . 1 . . . . . . . . . . . . . . . . . . . . . . . . . . . . 3 . . 1 . . . Parts Damaged . | . . . . . . . . . . . . . . . . . . . . . . . . . . . . . . . . . . . . . . . . . Bothacking | -11 -10 -10 -10 -9 -8 -8 -8 -8 -7 -7 -7 -7 -6 -6 -6 -6 -6 -6 -5 -5 -5 -5 -5 -5 -5 -5 -5 -4 -4 -4 -4 -4 -3 -3 -2 -2 -2 -1 -1 -1 ------------ Run | Scr Mat Min Exi Min Mat Gar Mat Gar Fac Gar Fac Gar Fac Was Fac Gar Fac Gar Fac Was Fac Gar Fac Ext Cet Arc Hub Fac Was Fac Arm Lab Res Qua Res Tes Sec Acc Com Ac0 Used RIF Installer 7 | . . . . . . 1 . 1 . 1 . 1 . . . 1 . 1 . . . 1 . . . . . . . . . . . . . . . . . . Coupler Efficiency 2 | . . . . . . . . . . . . . . . . 1 . 1 . . . . . . . . . . . . . . . . . . . . . . Robot Detection 1 | . . . . . . . . . . . . 1 . . . . . . . . . . . . . . . . . . . . . . . . . . . . Alert ID Control 1 | . . . . . . . . . . 1 . . . . . . . . . . . . . . . . . . . . . . . . . . . . . . Program Shield 1 | . . . . . . . . 1 . . . . . . . . . . . . . . . . . . . . . . . . . . . . . . . . Autooverride 1 | . . . . . . . . . . . . . . . . . . . . . . 1 . . . . . . . . . . . . . . . . . . Robots Hacked 46 | . . . . . . . . . . . . . 1 3 . . . 9 6 6 . . 6 2 . . . 1 . 3 . . . 1 . 2 1 5 . . Non-combat 14 | . . . . . . . . . . . . . 1 . . . . . 2 . . . 4 . . . . 1 . 3 . . . . . . . 3 . . Combat 32 | . . . . . . . . . . . . . . 3 . . . 9 4 6 . . 2 2 . . . . . . . . . 1 . 2 1 2 . . Robot Hacks Applied 53 | . . . . . . . . . . . . . 1 3 . . . 9 6 6 . . 8 2 . . . 1 . 6 . . . 2 . 2 1 6 . . parse_system 3 | . . . . . . . . . . . . . . . . . . 1 1 . . . . . . . . . . . . . . . . 1 . . . . find_chute 3 | . . . . . . . . . . . . . 1 . . . . . 1 . . . . . . . . 1 . . . . . . . . . . . . ignore_repairs 2 | . . . . . . . . . . . . . . . . . . . . . . . 2 . . . . . . . . . . . . . . . . . map_walls 1 | . . . . . . . . . . . . . . . . . . . . . . . 1 . . . . . . . . . . . . . . . . . locate_stockpiles 1 | . . . . . . . . . . . . . . . . . . . . . . . 1 . . . . . . . . . . . . . . . . . purge_threat 4 | . . . . . . . . . . . . . . . . . . . . . . . . . . . . . . 4 . . . . . . . . . . map_route 7 | . . . . . . . . . . . . . . . . . . . . . . . 2 . . . . . . 2 . . . . . . . 3 . . disable_scanner 1 | . . . . . . . . . . . . . . . . . . . . . . . . . . . . . . . . . . 1 . . . . . . locate_prototypes 3 | . . . . . . . . . . . . . . . . . . . . . . . . . . . . . . . . . . 1 . 1 1 . . . ignore_targets 9 | . . . . . . . . . . . . . . 3 . . . . . 6 . . . . . . . . . . . . . . . . . . . . link_fov 1 | . . . . . . . . . . . . . . . . . . . . . . . . . . . . . . . . . . . . . . 1 . . reboot_system 1 | . . . . . . . . . . . . . . . . . . . . . . . . 1 . . . . . . . . . . . . . . . . streamctrl_high 7 | . . . . . . . . . . . . . . . . . . 3 1 . . . 1 . . . . . . . . . . . . . . 2 . . formatsys_high 10 | . . . . . . . . . . . . . . . . . . 5 3 . . . 1 1 . . . . . . . . . . . . . . . . Relay Couplers Released 51 | . . . . . . 4 . . . 3 . 8 . . . 12 . 9 1 . . 6 . . . . 4 . . . . . . . . . . 4 . . Ejected 4 | . . . . . . . . . . . . . . . . . . . . . . . . . . . . . . . . . . . . . . 4 . . Machine Destruction 43 | . . . . . . 4 . . . 3 . 8 . . . 12 . 9 1 . . 6 . . . . . . . . . . . . . . . . . . Programmers 4 | . . . . . . . . . . . . . . . . . . . . . . . . . . . 4 . . . . . . . . . . . . . Attached 18 | . . . . . . . . . . . . . 1 . . . . 6 2 . . 1 2 1 . . . 1 . 1 . . . 1 . . . 2 . . Robots Rewired 28 | . . . . . . 3 . . . . . . . . . . . . . . . . . 15 . . . . . . 6 . . . 2 2 . . . . Allies Hacked 1 | . . . . . . . . . . . . . . . . . . . . . . . . . . . . . . . . . . . 1 . . . . . Hacks Repelled . | . . . . . . . . . . . . . . . . . . . . . . . . . . . . . . . . . . . . . . . . . Allies | -11 -10 -10 -10 -9 -8 -8 -8 -8 -7 -7 -7 -7 -6 -6 -6 -6 -6 -6 -5 -5 -5 -5 -5 -5 -5 -5 -5 -4 -4 -4 -4 -4 -3 -3 -2 -2 -2 -1 -1 -1 -------- Run | Scr Mat Min Exi Min Mat Gar Mat Gar Fac Gar Fac Gar Fac Was Fac Gar Fac Gar Fac Was Fac Gar Fac Ext Cet Arc Hub Fac Was Fac Arm Lab Res Qua Res Tes Sec Acc Com Ac0 Total Allies 108 | . . 3 . . . 3 . . . . . . . 19 . . 1 8 4 19 . . 2 20 4 . . . . . 6 . . . 3 2 . 2 2 10 Largest Group 19 | . . 3 3 2 . 3 . . . . . . . 19 17 6 1 3 3 19 17 17 7 5 5 . . . . . 4 . . . 3 1 . 2 2 8 Highest-Rated Group 714 | . . 40 40 24 . 15 . . . . . . . 714 614 208 32 90 112 714 614 614 273 269 526 . . . . . 120 . . . 130 60 . 138 305 218 Highest-Rated Ally 218 | . . 16 16 16 . 5 . . . . . . . 50 46 46 32 32 41 50 46 46 47 156 156 . . . . . 60 . . . 69 60 . 69 157 218 Total Orders 28 | . . . . . . . . . . . . . . . . . . . 2 . . . 5 1 2 . . . . . 3 1 2 . . 1 . 2 2 7 STAY 2 | . . . . . . . . . . . . . . . . . . . 1 . . . . . . . . . . . . . . . . . . . . 1 GOTO 9 | . . . . . . . . . . . . . . . . . . . 1 . . . . 1 2 . . . . . 1 . . . . . . . 2 2 ROAM 1 | . . . . . . . . . . . . . . . . . . . . . . . . . . . . . . . . . . . . 1 . . . . FOLLOW 1 | . . . . . . . . . . . . . . . . . . . . . . . . . . . . . . . 1 . . . . . . . . . EXPLORE 13 | . . . . . . . . . . . . . . . . . . . . . . . 4 . . . . . . . 1 . 2 . . . . 2 . 4 RETURN 2 | . . . . . . . . . . . . . . . . . . . . . . . 1 . . . . . . . . 1 . . . . . . . . Ally Attacks 538 | . . . 12 15 . 22 . . . . . . . . 2 32 . 35 14 . 26 91 32 72 87 . . . . . 8 . . . 5 3 . 6 12 64 Total Damage 13088 | . . . 8 129 . 155 . . . . . . . . 41 610 . 621 562 . 511 2425 820 1763 2493 . . . . . 126 . . . 190 98 . 314 671 1551 Kills 69 | . . . . 2 . 1 . . . . . . . . 1 5 . 4 2 . 6 16 1 10 13 . . . . . . . . . 1 . . 2 2 3 Allies Corrupted 1 | . . . . . . . . . . . . . . . . . . . . . . . 1 . . . . . . . . . . . . . . . . . Allies Melted . | . . . . . . . . . . . . . . . . . . . . . . . . . . . . . . . . . . . . . . . . . Field Lobotomies 4 | . . . . . . . . . . . . . . . . . . . . . . . . . . . . . . . . . . . . . . . 2 2 Intel | -11 -10 -10 -10 -9 -8 -8 -8 -8 -7 -7 -7 -7 -6 -6 -6 -6 -6 -6 -5 -5 -5 -5 -5 -5 -5 -5 -5 -4 -4 -4 -4 -4 -3 -3 -2 -2 -2 -1 -1 -1 ------- Run | Scr Mat Min Exi Min Mat Gar Mat Gar Fac Gar Fac Gar Fac Was Fac Gar Fac Gar Fac Was Fac Gar Fac Ext Cet Arc Hub Fac Was Fac Arm Lab Res Qua Res Tes Sec Acc Com Ac0 Robot Analysis Total 8 | . 1 . . . . . 2 . 1 . . . . . . . . . . . . . . . . . . . . . . . 1 3 . . . . . . Derelict Logs Recovered 2 | . . 1 . 1 . . . . . . . . . . . . . . . . . . . . . . . . . . . . . . . . . . . . Drone Launches 29 | . . . . . . . . . . . . . . . . . . . . . . . 3 . . . . . . . 2 3 3 . . . . 6 6 6 Drone Recoveries 4 | . . . . . . . . . . . . . . . . . . . . . . . 1 . . . . . . . . 3 . . . . . . . . Exploration | -11 -10 -10 -10 -9 -8 -8 -8 -8 -7 -7 -7 -7 -6 -6 -6 -6 -6 -6 -5 -5 -5 -5 -5 -5 -5 -5 -5 -4 -4 -4 -4 -4 -3 -3 -2 -2 -2 -1 -1 -1 ------------- Run | Scr Mat Min Exi Min Mat Gar Mat Gar Fac Gar Fac Gar Fac Was Fac Gar Fac Gar Fac Was Fac Gar Fac Ext Cet Arc Hub Fac Was Fac Arm Lab Res Qua Res Tes Sec Acc Com Ac0 Turns Passed 37023 | 176 1126 385 721 296 1460 895 171 518 756 831 431 670 381 690 302 1113 223 459 785 891 168 351 1272 1695 638 576 863 155 737 913 1938 1159 634 1159 820 2012 2158 1009 1608 3878 Spaces Moved 16834 | 69 534 214 359 110 634 402 69 224 444 461 257 353 196 358 166 544 130 190 387 409 101 197 553 709 242 138 272 90 412 380 772 272 311 524 331 874 1072 528 820 1726 Core 30 | 8 . . . . . . . . . . . . . . . . . . . . . . . . . . . . . . . 22 . . . . . . . . Treads 16804 | 61 534 214 359 110 634 402 69 224 444 461 257 353 196 358 166 544 130 190 387 409 101 197 553 709 242 138 272 90 412 380 772 250 311 524 331 874 1072 528 820 1726 Legs . | . . . . . . . . . . . . . . . . . . . . . . . . . . . . . . . . . . . . . . . . . Wheels . | . . . . . . . . . . . . . . . . . . . . . . . . . . . . . . . . . . . . . . . . . Hover . | . . . . . . . . . . . . . . . . . . . . . . . . . . . . . . . . . . . . . . . . . Flight . | . . . . . . . . . . . . . . . . . . . . . . . . . . . . . . . . . . . . . . . . . Fastest Speed 50 | 50 160 160 160 180 175 180 180 180 156 156 156 156 148 148 150 150 155 155 155 156 160 160 160 160 160 160 160 160 160 160 160 165 165 165 165 165 155 155 155 160 Average Speed 168 | 147 160 160 175 193 179 180 180 180 156 156 157 156 155 149 153 152 155 155 155 159 160 160 160 167 163 170 160 160 166 165 167 410 165 172 178 174 157 155 155 173 Slowest Speed 3200 | 160 160 160 180 200 180 180 180 180 176 176 192 156 156 150 170 170 155 155 156 160 160 160 180 180 180 180 180 160 180 180 200 3200 165 187 187 185 180 155 175 200 Overloaded Moves . | . . . . . . . . . . . . . . . . . . . . . . . . . . . . . . . . . . . . . . . . . Propulsion Burnouts . | . . . . . . . . . . . . . . . . . . . . . . . . . . . . . . . . . . . . . . . . . Robots Hopped . | . . . . . . . . . . . . . . . . . . . . . . . . . . . . . . . . . . . . . . . . . Cave-ins Triggered 3 | . . . . . . . . . . . 1 . . . 1 . . . . . . . . . . . . . . . . . . . . 1 . . . . Teleports 5 | . . . . . . . . . . . . . . . . . . . . . . . . . . . . . . . . . . . . . 1 2 1 1 Exploration Rate (%) 46 | 3 91 46 70 24 67 48 8 44 18 65 8 68 7 88 6 66 4 43 11 94 5 48 18 77 69 86 48 3 95 14 61 95 21 90 12 67 63 34 32 83 Regions Visited 40 Branch Regions 14 Pre-discovered Areas 3 | . 2 1 . . . . . . . . . . . . . . . . . . . . . . . . . . . . . . . . . . . . . . Known Exits Taken 14 | . . . . . 1 . 1 . 1 . 1 . . . 1 . 1 . . . 1 . . . . . 1 . . 1 . . 1 1 1 . 1 1 . . Unknown Exits Taken 13 | 1 1 1 1 1 . . . . . . . . . . . . . . . . . . 1 1 1 1 . . . . 1 1 . . . 1 . . 1 . Scrap Searched 1 | . . 1 . . . . . . . . . . . . . . . . . . . . . . . . . . . . . . . . . . . . . . Spaces Dug 386 | . 12 . . 12 . . . . 1 . . . 14 . 15 . 2 . 5 . . . 5 5 . . 9 . . 6 21 . 15 18 6 30 29 17 . 164 Terrain Destroyed 2478 | . 180 . . 62 . 35 . 8 91 13 . 113 14 . 15 11 2 . 5 . . . 66 21 23 24 588 . 10 38 64 . 71 52 6 44 29 22 . 871 Melee 110 | . . . . . . . . . 1 . . . 14 . 15 . 2 . 5 . . . 5 5 . . 3 . . 5 17 . 15 1 . 1 21 . . . Projectile 310 | . 6 . . . . . . . . . . 2 . . . 7 . . . . . . . 5 23 24 95 . 10 4 17 . 3 33 6 38 1 2 . 34 AOE 2058 | . 174 . . 62 . 35 . 8 90 13 . 111 . . . 4 . . . . . . 61 11 . . 490 . . 29 30 . 53 18 . 5 7 20 . 837 Actions | -11 -10 -10 -10 -9 -8 -8 -8 -8 -7 -7 -7 -7 -6 -6 -6 -6 -6 -6 -5 -5 -5 -5 -5 -5 -5 -5 -5 -4 -4 -4 -4 -4 -3 -3 -2 -2 -2 -1 -1 -1 --------- Run | Scr Mat Min Exi Min Mat Gar Mat Gar Fac Gar Fac Gar Fac Was Fac Gar Fac Gar Fac Was Fac Gar Fac Ext Cet Arc Hub Fac Was Fac Arm Lab Res Qua Res Tes Sec Acc Com Ac0 Total 22923 | 105 709 242 444 153 832 515 101 281 494 521 284 413 253 438 193 739 144 338 526 533 108 221 820 1104 415 396 505 101 454 614 1213 311 375 768 559 1302 1407 661 1042 2289 Wait 1694 | 3 46 11 53 10 38 9 . 22 15 6 5 7 12 4 . 57 . 97 46 8 8 7 104 83 87 195 52 . 2 67 93 4 3 34 110 165 46 34 40 111 Move 16798 | 68 533 213 358 109 633 401 69 223 443 460 257 352 196 357 165 543 129 189 387 408 100 196 552 708 241 137 271 90 411 379 771 271 310 523 330 873 1071 527 819 1725 Hop . | . . . . . . . . . . . . . . . . . . . . . . . . . . . . . . . . . . . . . . . . . Pick Up 423 | 5 17 1 19 . 25 5 5 1 4 3 4 . 3 4 2 29 4 6 11 11 . 3 11 16 20 11 25 2 8 10 36 7 4 9 3 29 35 11 11 13 Fast Attach 182 | 6 11 . 1 1 8 . . . 2 3 4 3 1 4 . 4 . 1 1 4 . . 4 7 5 . 3 . 4 6 19 6 . 6 9 12 15 2 7 23 Attach 332 | 1 2 . 2 . 14 . 2 . 4 . 2 1 10 4 4 16 1 3 10 6 . 1 11 11 3 3 12 3 8 17 25 6 3 8 3 25 43 13 21 34 Detach 188 | . 2 . . . . . . . 1 . . 1 6 6 2 8 1 3 4 2 . 1 7 2 3 2 3 1 3 13 8 2 . 5 4 21 30 8 13 26 Swap 304 | 1 9 2 1 6 11 18 6 3 9 10 3 8 2 5 1 6 2 11 13 5 . 1 16 9 7 3 8 1 2 11 31 1 16 12 7 15 14 6 8 4 Drop 460 | 1 16 2 5 2 31 7 11 2 5 6 8 2 6 4 3 18 . 5 16 14 . 1 12 16 10 10 33 1 9 11 42 10 4 15 8 35 23 10 21 25 Fire 2021 | 20 62 7 5 24 67 30 8 28 6 18 . 38 1 48 . 50 5 20 32 42 . . 92 55 39 35 95 3 7 94 165 . 18 150 82 115 99 40 96 325 Melee 214 | . . . . . . 5 . . 1 15 . 1 16 2 15 7 2 2 6 33 . 8 6 10 . . 3 . . 6 19 4 15 3 . 7 28 . . . Ram . | . . . . . . . . . . . . . . . . . . . . . . . . . . . . . . . . . . . . . . . . . Kick . | . . . . . . . . . . . . . . . . . . . . . . . . . . . . . . . . . . . . . . . . . Crush 63 | . 11 6 . 1 5 . . . 4 . 1 . . . . . . . . . . . 5 1 . . . . . . 2 . 2 3 1 5 3 8 4 1 Escape Stasis 28 | . . . . . . 12 . 2 . . . . . . 1 1 . 1 . . . 3 . 6 . . . . . . . . . . 2 . . . . . Rewire 209 | . . . . . . 28 . . . . . . . . . . . . . . . . . 180 . . . . . . 1 . . . . . . . . . Trap . | . . . . . . . . . . . . . . . . . . . . . . . . . . . . . . . . . . . . . . . . . Miscellaneous 7 | . . . . . . . . . . . . . . . . . . . . . . . . . . . . . . . 1 . . . . . . 2 2 2 Route ------- -11/Scrapyard -10/Materials (discovered 4 exits: [*Mat x3] / [*Min]) -10/Mines (discovered 3 exits: [*Mat x2] / *Exi) -10/Exiles -9/Mines -8/Materials (discovered 4 exits: *Fac x3 / Gar) -8/Garrison (discovered 2 exits: *Mat x2) -8/Materials -8/Garrison (discovered 2 exits: *Fac x2) -7/Factory (discovered 3 exits: [*Sto] / *Low / Gar) -7/Garrison (discovered 3 exits: *Fac x3) -7/Factory -7/Garrison (discovered 3 exits: *Fac x3) -6/Factory (discovered 5 exits: Fac x4 / [*Low]) -6/Waste -6/Factory -6/Garrison (discovered 3 exits: *Fac x3) -6/Factory -6/Garrison -5/Factory -5/Waste -5/Factory -5/Garrison -5/Factory (discovered 2 exits: *Upp / *Ext) -5/Extension (discovered 2 exits: *Fac / *Cet) -5/Cetus (discovered 2 exits: *Fac / [*Arc]) -5/Archives (discovered 3 exits: *Fac / *Hub x2) -5/Hub_04(d) (discovered 4 exits: *Fac x4) -4/Factory -4/Waste -4/Factory (discovered 3 exits: Upp x2 / *Arm) -4/Armory (discovered 2 exits: *Res / [*Lab]) -4/Lab -3/Research (discovered 3 exits: *Res / *Qua x2) -3/Quarantine -2/Research (discovered 2 exits: *Tes x2) -2/Testing (discovered 2 exits: *Acc / *Sec) -2/Section 7 -1/Access -1/Command -1/Access_0 To Fleet Rendezvous History --------- Turn | Location | Event 15 | -11/Scrapyard | Discovered new exit (range 13) 177 | -11/Scrapyard | Entered Materials 324 | -10/Materials | Build established: Mutant 396 | -10/Materials | Discovered new exit (range 12) 702 | -10/Materials | Discovered new exit (range 8) 998 | -10/Materials | Discovered new exit (range 16) 1051 | -10/Materials | Repaired Grenade Launcher 1115 | -10/Materials | Discovered new exit (range 15) 1260 | -10/Materials | Central database locked down 1303 | -10/Materials | Entered Mines 1323 | -10/Mines | Discovered new exit (range 13) 1390 | -10/Mines | Learned location of Zion (-6) 1566 | -10/Mines | Discovered new exit (range 3) 1630 | -10/Mines | Assisted by bots powering up and referring to "LRC-V3" 1674 | -10/Mines | Deemed a non-threat by the Exiles lab entrance 1674 | -10/Mines | Discovered new exit (range 5) 1688 | -10/Mines | Entered Exiles 1688 | -10/Exiles | Accompanied by 3 allies 1733 | -10/Exiles | Met 8R-AWN 1759 | -10/Exiles | Met EX-HEX 1850 | -10/Exiles | Met EX-DEC 2091 | -10/Exiles | Met EX-BIN 2113 | -10/Exiles | Aligned with FarCom system 2115 | -10/Exiles | Given EX-Vault access code 2156 | -10/Exiles | Opened EX-Vault 2167 | -10/Exiles | Found Lightpack 2.0 2170 | -10/Exiles | Found Field Lobotomy Kit 2174 | -10/Exiles | Found AWS/Gauss 2210 | -10/Exiles | Warned to stay clear of 0b10 Research branches 2232 | -10/Exiles | Exiles lab attacked by MAIN.C 2232 | -10/Exiles | Build established: Hauler-Mutant 2328 | -10/Exiles | Discovered new exit (range 10) 2397 | -10/Exiles | Attacked by the Exiles 2409 | -10/Exiles | Stole three prototypes: Lightpack 2.0, AWS/Gauss, Field Lobotomy Kit 2409 | -10/Exiles | Entered Mines 2409 | -9/Mines | Accompanied by 2 allies 2465 | -9/Mines | A weapon hastily lodged in a ceiling crevice suddenly fell to the ground 2479 | -9/Mines | Assembled infested the area 2484 | -9/Mines | Assisted by a Guerilla fighting off Assembled 2639 | -9/Mines | Learned 4 Materials zone layouts 2664 | -9/Mines | Discovered new exit (range 15) 2705 | -9/Mines | Entered Materials 2705 | -8/Materials | Evolved 4 slots: Propulsion x1, Utility x2, Weapon x1 2706 | -8/Materials | Identified exit to Factory 2715 | -8/Materials | Destroyed 11 combat bots 3003 | -8/Materials | Build established: Hauler-Tank 3308 | -8/Materials | Discovered exit to Factory (range 16) 3718 | -8/Materials | Discovered exit to Factory (range 16) 4154 | -8/Materials | Identified exit to Garrison 4165 | -8/Materials | Entered Garrison 4264 | -8/Garrison | Triggered checkpoint 4300 | -8/Garrison | Triggered checkpoint 4301 | -8/Garrison | Destroyed 8 combat bots 4376 | -8/Garrison | Discovered new exit (range 15) 4780 | -8/Garrison | Triggered checkpoint 4802 | -8/Garrison | Triggered checkpoint 4828 | -8/Garrison | Discovered new exit (range 15) 4838 | -8/Garrison | Triggered checkpoint 4881 | -8/Garrison | Installed Relay Interface Framework 4901 | -8/Garrison | Build established: Hauler-Mutant 4961 | -8/Garrison | Garrison Relay disabled 5060 | -8/Garrison | Entered Materials 5231 | -8/Materials | Identified exit to Garrison 5231 | -8/Materials | Entered Garrison 5294 | -8/Garrison | Triggered checkpoint 5354 | -8/Garrison | Triggered checkpoint 5360 | -8/Garrison | Build established: Hauler-Tank 5493 | -8/Garrison | Discovered exit to Factory (range 15) 5713 | -8/Garrison | Discovered exit to Factory (range 10) 5742 | -8/Garrison | Expanded RIF knowledge: Program Shield 5749 | -8/Garrison | Entered Factory 5749 | -7/Factory | Evolved 2 slots: Propulsion x1, Utility x1 6305 | -7/Factory | Discovered new exit (range 6) 6407 | -7/Factory | Discovered new exit (range 9) 6448 | -7/Factory | Identified exit to Lower Caves 6498 | -7/Factory | Identified exit to Garrison 6505 | -7/Factory | Entered Garrison 6513 | -7/Garrison | Expanded RIF knowledge: Alert ID Control 6644 | -7/Garrison | Destroyed 7 combat bots 6646 | -7/Garrison | Triggered checkpoint 6653 | -7/Garrison | Triggered checkpoint 6678 | -7/Garrison | Destroyed 7 combat bots 6741 | -7/Garrison | Discovered new exit (range 8) 6840 | -7/Garrison | Triggered checkpoint 6901 | -7/Garrison | Garrison Relay disabled 6938 | -7/Garrison | Discovered new exit (range 14) 7040 | -7/Garrison | Triggered checkpoint 7071 | -7/Garrison | Discovered new exit (range 9) 7156 | -7/Garrison | Build established: Hauler-Mutant 7336 | -7/Garrison | Entered Factory 7467 | -7/Factory | Crushed by falling debris 7516 | -7/Factory | Fabricated Adv. Treads (x2) 7530 | -7/Factory | Fabricated Adv. Treads (x2) 7767 | -7/Factory | Identified exit to Garrison 7767 | -7/Factory | Entered Garrison 7796 | -7/Garrison | Build established: Hauler-Tank 7808 | -7/Garrison | Phase Generator disabled 7826 | -7/Garrison | Triggered checkpoint 7899 | -7/Garrison | Discovered new exit (range 14) 7978 | -7/Garrison | Garrison Relay disabled 8104 | -7/Garrison | Triggered checkpoint 8136 | -7/Garrison | Garrison Relay disabled 8177 | -7/Garrison | Discovered new exit (range 14) 8269 | -7/Garrison | Triggered checkpoint 8392 | -7/Garrison | Discovered new exit (range 11) 8428 | -7/Garrison | Expanded RIF knowledge: Robot Detection 8437 | -7/Garrison | Entered Factory 8437 | -6/Factory | Evolved 2 slots: Utility x1, Weapon x1 8613 | -6/Factory | Repaired Med. Reactive Plating 8741 | -6/Factory | Discovered new exit (range 6) 8764 | -6/Factory | Identified exit to Factory 8818 | -6/Factory | Sucked down chute 8818 | -6/Factory | Entered Waste 8840 | -6/Waste | Spotted C-40 Crusher 8848 | -6/Waste | Build established: Hauler-Mutant 8886 | -6/Waste | Destroyed C-40 Crusher 8910 | -6/Waste | Destroyed C-40 Crusher 8932 | -6/Waste | Destroyed C-40 Crusher 8958 | -6/Waste | Spotted C-40 Crusher 8977 | -6/Waste | Crushed by Compactor (1 part destroyed, 1 dropped) 9005 | -6/Waste | Spotted C-40 Crusher 9062 | -6/Waste | Destroyed C-40 Crusher 9074 | -6/Waste | Destroyed C-40 Crusher 9086 | -6/Waste | Spotted C-40 Crusher 9131 | -6/Waste | Destroyed C-40 Crusher 9139 | -6/Waste | Found Damper Plating 9143 | -6/Waste | Found Damper Plating 9290 | -6/Waste | Warlord forces began an assault 9401 | -6/Waste | Discovered new exit (range 16) 9508 | -6/Waste | Entered Factory 9508 | -6/Factory | Accompanied by 17 allies 9803 | -6/Factory | Crushed by falling debris 9810 | -6/Factory | Identified exit to Garrison 9810 | -6/Factory | Entered Garrison 9810 | -6/Garrison | Accompanied by 6 allies 9819 | -6/Garrison | Expanded RIF knowledge: Coupler Efficiency 9846 | -6/Garrison | Triggered checkpoint 9874 | -6/Garrison | Triggered checkpoint 9902 | -6/Garrison | Triggered checkpoint 9925 | -6/Garrison | Garrison Relay disabled 9994 | -6/Garrison | Triggered checkpoint 10222 | -6/Garrison | Triggered checkpoint 10234 | -6/Garrison | Build established: Bothacker-Tank 10250 | -6/Garrison | Destroyed 10 combat bots 10271 | -6/Garrison | Garrison Relay disabled 10330 | -6/Garrison | Triggered checkpoint 10338 | -6/Garrison | Discovered new exit (range 10) 10421 | -6/Garrison | Garrison Relay disabled 10532 | -6/Garrison | Triggered checkpoint 10584 | -6/Garrison | Build established: Botlord-Tank 10608 | -6/Garrison | Triggered checkpoint 10648 | -6/Garrison | Discovered new exit (range 15) 10714 | -6/Garrison | Spotted B-75 Beast 10758 | -6/Garrison | Destroyed B-75 Beast 10897 | -6/Garrison | Discovered new exit (range 14) 10923 | -6/Garrison | Entered Factory 11034 | -6/Factory | Found Prototype Processor 11035 | -6/Factory | Identified Exp. Signal Interpreter 11041 | -6/Factory | Found Exp. Signal Interpreter 11095 | -6/Factory | Identified exit to Garrison 11146 | -6/Factory | Entered Garrison 11146 | -6/Garrison | Accompanied by 1 ally 11156 | -6/Garrison | Expanded RIF knowledge: Coupler Efficiency 11186 | -6/Garrison | Triggered checkpoint 11209 | -6/Garrison | Garrison Relay disabled 11296 | -6/Garrison | Triggered checkpoint 11362 | -6/Garrison | Triggered checkpoint 11495 | -6/Garrison | Discovered exit to Factory (range 10) 11498 | -6/Garrison | Build established: Botlord-Mutant 11540 | -6/Garrison | Triggered checkpoint 11557 | -6/Garrison | Garrison Relay disabled 11605 | -6/Garrison | Entered Factory 11605 | -5/Factory | Accompanied by 1 ally 11605 | -5/Factory | Evolved 2 slots: Power x1, Utility x1 12338 | -5/Factory | Discovered new exit (range 15) 12390 | -5/Factory | Sucked down chute 12390 | -5/Factory | Entered Waste 12403 | -5/Waste | Spotted C-40 Crusher 12405 | -5/Waste | Spotted C-40 Crusher 12405 | -5/Waste | Spotted C-40 Crusher 12473 | -5/Waste | Spotted C-40 Crusher 12483 | -5/Waste | Spotted C-40 Crusher 12486 | -5/Waste | Spotted C-40 Crusher 12660 | -5/Waste | Build established: Bothacker-Mutant 12665 | -5/Waste | Destroyed C-40 Crusher 12669 | -5/Waste | Found Damper Plating 12694 | -5/Waste | Destroyed C-40 Crusher 12716 | -5/Waste | Destroyed C-40 Crusher 12745 | -5/Waste | Found Damper Plating 12761 | -5/Waste | Destroyed C-40 Crusher 12767 | -5/Waste | Found Damper Plating 12779 | -5/Waste | Destroyed C-40 Crusher 12802 | -5/Waste | Destroyed C-40 Crusher 13021 | -5/Waste | Warlord forces began an assault 13165 | -5/Waste | Discovered new exit (range 13) 13222 | -5/Waste | Found Broken Enh. Force Lance 13281 | -5/Waste | Entered Factory 13281 | -5/Factory | Accompanied by 17 allies 13432 | -5/Factory | Identified exit to Garrison 13449 | -5/Factory | Entered Garrison 13449 | -5/Garrison | Accompanied by 17 allies 13480 | -5/Garrison | Triggered checkpoint 13506 | -5/Garrison | Garrison Relay disabled 13558 | -5/Garrison | Triggered checkpoint 13574 | -5/Garrison | Triggered checkpoint 13631 | -5/Garrison | Discovered new exit (range 12) 13663 | -5/Garrison | Expanded RIF knowledge: Autooverride 13710 | -5/Garrison | Triggered checkpoint 13747 | -5/Garrison | Garrison Relay disabled 13800 | -5/Garrison | Entered Factory 13800 | -5/Factory | Accompanied by 7 allies 13960 | -5/Factory | Build established: Botlord-Mutant 14066 | -5/Factory | Discovered new exit (range 15) 14089 | -5/Factory | Identified exit to Upper Caves 14400 | -5/Factory | First assault squad dispatched 15036 | -5/Factory | Discovered new exit (range 10) 15072 | -5/Factory | Entered Extension 15224 | -5/Extension | Rescued a captive Derelict 15551 | -5/Extension | Rescued a captive Derelict 15556 | -5/Extension | Rescued a captive Derelict 16101 | -5/Extension | Spotted B-75 Beast 16139 | -5/Extension | Assimilated Beast 6a with formatsys_high 16150 | -5/Extension | Spotted B-75 Beast 16185 | -5/Extension | Destroyed B-75 Beast 16297 | -5/Extension | Disrupted transfer network 16317 | -5/Extension | Rescued a captive Derelict 16500 | -5/Extension | Build established: Scavenger-Gunner 16556 | -5/Extension | Rescued a captive Derelict 16591 | -5/Extension | Rescued A7 16746 | -5/Extension | Discovered new exit (range 10) 16748 | -5/Extension | Discovered new exit (range 6) 16767 | -5/Extension | Entered Cetus 16767 | -5/Cetus | Accompanied by 4 allies 16772 | -5/Cetus | Acquired a Cetus Manufacturing Module code from A7 16795 | -5/Cetus | Spotted Cetus Guard 16804 | -5/Cetus | Destroyed Cetus Guard 16805 | -5/Cetus | Spotted Cetus Guard 16810 | -5/Cetus | Spotted Cetus Guard 16810 | -5/Cetus | Allies destroyed Cetus Guard 16813 | -5/Cetus | Allies destroyed Cetus Guard 16818 | -5/Cetus | Spotted Cetus Guard 16823 | -5/Cetus | Destroyed Cetus Guard 16936 | -5/Cetus | Started Cetus Manufacturing Module 16961 | -5/Cetus | Manufactured an Enhanced Grunt 16965 | -5/Cetus | Discovered new exit (range 15) 16986 | -5/Cetus | Manufactured an Enhanced Grunt 17011 | -5/Cetus | Manufactured an Enhanced Grunt 17036 | -5/Cetus | Manufactured an Enhanced Grunt 17057 | -5/Cetus | Cetus Manufacturing Module disabled 17175 | -5/Cetus | Spotted Cetus Guard 17179 | -5/Cetus | Spotted Cetus Guard 17179 | -5/Cetus | Spotted Cetus Guard 17181 | -5/Cetus | Allies destroyed Cetus Guard 17182 | -5/Cetus | Spotted Cetus Guard 17188 | -5/Cetus | Allies destroyed Cetus Guard 17189 | -5/Cetus | Destroyed Cetus Guard 17197 | -5/Cetus | Allies destroyed Cetus Guard 17240 | -5/Cetus | Destroyed A7 17252 | -5/Cetus | Extracted ID and sensor layout for unrecognized location from A7's data core 17283 | -5/Cetus | Discovered new exit (range 15) 17291 | -5/Cetus | Met Revision 17 17296 | -5/Cetus | Destroyed Revision 17 17405 | -5/Cetus | Entered Archives 17571 | -5/Archives | Discovered new exit (range 16) 17609 | -5/Archives | Build established: Hauler-Gunner 17635 | -5/Archives | Discovered new exit (range 13) 17683 | -5/Archives | Discovered new exit (range 15) 17981 | -5/Archives | Entered Hub_04(d) 18012 | -5/Hub_04(d) | Discovered new exit (range 16) 18082 | -5/Hub_04(d) | Identified exit to Factory 18183 | -5/Hub_04(d) | Network Hub disabled 18208 | -5/Hub_04(d) | Spotted Lightning 18234 | -5/Hub_04(d) | Destroyed Lightning 18248 | -5/Hub_04(d) | Spotted Lightning 18253 | -5/Hub_04(d) | Build established: Scavenger-Tank 18258 | -5/Hub_04(d) | Destroyed Lightning 18270 | -5/Hub_04(d) | Destroyed Lightning 18282 | -5/Hub_04(d) | Found Prototype Processor 18294 | -5/Hub_04(d) | Found Prototype Energy Cannon 18297 | -5/Hub_04(d) | Found Prototype Device 18297 | -5/Hub_04(d) | Identified Exp. Phase Shifter 18302 | -5/Hub_04(d) | Found Prototype Processor 18307 | -5/Hub_04(d) | Found Prototype Energy Cannon 18314 | -5/Hub_04(d) | Identified EMDS (x2) 18317 | -5/Hub_04(d) | Found Exp. Phase Shifter 18337 | -5/Hub_04(d) | Spotted Lightning 18337 | -5/Hub_04(d) | Spotted Lightning 18337 | -5/Hub_04(d) | Spotted Lightning 18341 | -5/Hub_04(d) | Garrison activated, responded to threat 18341 | -5/Hub_04(d) | Destroyed Lightning 18355 | -5/Hub_04(d) | Destroyed Lightning 18383 | -5/Hub_04(d) | Destroyed Lightning 18420 | -5/Hub_04(d) | Found Prototype Device 18506 | -5/Hub_04(d) | Spotted Lightning 18506 | -5/Hub_04(d) | Spotted Lightning 18507 | -5/Hub_04(d) | Spotted Lightning 18520 | -5/Hub_04(d) | Garrison activated, responded to threat 18525 | -5/Hub_04(d) | Destroyed Lightning 18536 | -5/Hub_04(d) | Found EMDS 18556 | -5/Hub_04(d) | Destroyed Lightning 18569 | -5/Hub_04(d) | Spotted Lightning 18570 | -5/Hub_04(d) | Spotted Lightning 18574 | -5/Hub_04(d) | Destroyed Lightning 18581 | -5/Hub_04(d) | First assault squad dispatched 18584 | -5/Hub_04(d) | Spotted Lightning 18648 | -5/Hub_04(d) | Destroyed Lightning 18656 | -5/Hub_04(d) | Destroyed Lightning 18659 | -5/Hub_04(d) | Destroyed Lightning 18688 | -5/Hub_04(d) | Destroyed 20 combat bots 18727 | -5/Hub_04(d) | Network Hub disabled 18727 | -5/Hub_04(d) | Network Hub disabled 18844 | -5/Hub_04(d) | Entered Factory 18844 | -4/Factory | Evolved 2 slots: Utility x2 18991 | -4/Factory | Found Quantum Capacitor 18999 | -4/Factory | Sucked down chute 18999 | -4/Factory | Entered Waste 18999 | -4/Waste | The area was eerily silent 19087 | -4/Waste | Discovered new exit (range 15) 19300 | -4/Waste | Found Damper Plating 19653 | -4/Waste | Found Damper Plating 19736 | -4/Waste | Entered Factory 19781 | -4/Factory | Found Prototype Hackware 20017 | -4/Factory | Build established: Hauler-Mutant 20090 | -4/Factory | Identified exit to Upper Caves 20090 | -4/Factory | Identified exit to Armory 20231 | -4/Factory | Destroyed 8 combat bots 20649 | -4/Factory | Entered Armory 20717 | -4/Armory | Found Gamma Bomb Array 20720 | -4/Armory | Found Gamma Bomb Array 20722 | -4/Armory | Found Gamma Bomb Array 20725 | -4/Armory | Found Gamma Bomb Array 20806 | -4/Armory | Found Prototype Hackware 20813 | -4/Armory | Found Prototype Slashing Weapon 20813 | -4/Armory | Identified Vibroblade 20866 | -4/Armory | Spotted B-86 Titan 21257 | -4/Armory | Discovered new exit (range 5) 21269 | -4/Armory | Destroyed 9 combat bots 21450 | -4/Armory | Destroyed 9 combat bots 21711 | -4/Armory | Destroyed 7 combat bots 22149 | -4/Armory | First assault squad dispatched 22354 | -4/Armory | Found Exp. Signal Interpreter 22357 | -4/Armory | Found Prototype Slashing Weapon 22357 | -4/Armory | Identified Molecular Scythe 22400 | -4/Armory | Identified EM Dispersion Field 22515 | -4/Armory | Destroyed 7 combat bots 22577 | -4/Armory | Discovered new exit (range 5) 22587 | -4/Armory | Entered Lab 22589 | -4/Lab | Discovered new exit (range 9) 22607 | -4/Lab | Hidden lab's door opened automatically 22607 | -4/Lab | Sensor layout match revealed 22608 | -4/Lab | Gained access to the hidden lab's interior 22836 | -4/Lab | Build established: Hauler-Tank 23379 | -4/Lab | Found Alien Artifact 23379 | -4/Lab | Identified Integrated Reactor 23379 | -4/Lab | Installed Integrated Reactor, increased core energy generation (+2%) 23432 | -4/Lab | Found Alien Artifact 23432 | -4/Lab | Identified Core Expander 23432 | -4/Lab | Installed Core Expander, added new Utility slot 23460 | -4/Lab | Found Prototype Protection 23460 | -4/Lab | Identified Med. Regenerative Plating 23469 | -4/Lab | Found Prototype Energy Cannon 23469 | -4/Lab | Identified Potential Cannon 23474 | -4/Lab | Found Prototype Energy Gun 23474 | -4/Lab | Identified Tachyon Dispersion Ray 23527 | -4/Lab | Found Alien Artifact 23579 | -4/Lab | Found Alien Artifact 23618 | -4/Lab | Found Prototype Special Weapon 23652 | -4/Lab | Found Prototype Hackware 23746 | -4/Lab | Entered Research 23746 | -3/Research | Evolved 2 slots: Utility x2 24103 | -3/Research | Identified Exp. System Shield 24103 | -3/Research | Identified Exp. Hacking Suite 24103 | -3/Research | Identified Deep Network Scanner 24103 | -3/Research | Identified Exp. Targeting Computer 24103 | -3/Research | Identified Gui. Remote Datajack 24103 | -3/Research | Identified Transdimensional Reconstructor 24103 | -3/Research | Identified Core Reset Matrix 24129 | -3/Research | Identified exit to Quarantine 24172 | -3/Research | Spotted B-86 Titan 24292 | -3/Research | Discovered new exit (range 9) 24370 | -3/Research | Central database locked down 24380 | -3/Research | Entered Quarantine 24446 | -3/Quarantine | Found Core Cannon 24536 | -3/Quarantine | Found Phase Redirector 24746 | -3/Quarantine | Build established: Hacker-Mutant 25020 | -3/Quarantine | Found Core Stripper 25127 | -3/Quarantine | Found Subatomic Replicator 25170 | -3/Quarantine | Identified exit to Research 25304 | -3/Quarantine | System corruption reached 10% 25332 | -3/Quarantine | Destroyed 8 combat bots 25508 | -3/Quarantine | Cryocooling Duct disabled 25523 | -3/Quarantine | Ambient heat levels rising (+20) 25523 | -3/Quarantine | Non-combat units ordered to evacuate 25539 | -3/Quarantine | Entered Research 25539 | -2/Research | Evolved 2 slots: Utility x2 26044 | -2/Research | Identified exit to Testing 26359 | -2/Research | Entered Testing 26360 | -2/Testing | Protovariant out of control (PL-Z717BXBMLZ) 26448 | -2/Testing | Spotted PL-Z717BXBMLZ 26504 | -2/Testing | Spotted Investigator 26540 | -2/Testing | Scanned by Researcher 26545 | -2/Testing | Destroyed Investigator 26629 | -2/Testing | Fabricated Imp. Weapon Shielding? 26661 | -2/Testing | Found Potential Cannon 26663 | -2/Testing | Found Potential Cannon 26749 | -2/Testing | Found Exp. Hardlight Generator 27009 | -2/Testing | Found Perforator 27388 | -2/Testing | Found SHELL Armor 27415 | -2/Testing | Discovered new exit (range 16) 27475 | -2/Testing | Spotted Alpha 7 27478 | -2/Testing | Build established: Hauler-Mutant 27581 | -2/Testing | Destroyed Alpha 7 27586 | -2/Testing | Found Antimissile System 27589 | -2/Testing | Found Prototype Processor 27602 | -2/Testing | Found Exp. Targeting Computer 27605 | -2/Testing | Found Prototype Ballistic Gun 27605 | -2/Testing | Identified Multirail 27726 | -2/Testing | Crushed by falling debris 27757 | -2/Testing | Lost 3 parts (2p1u) 27839 | -2/Testing | Found Omega Cannon 28114 | -2/Testing | Spotted Fortress 28127 | -2/Testing | Destroyed Fortress 28157 | -2/Testing | Found Prototype Reactor 28157 | -2/Testing | Identified Vortex Chain Reactor 28194 | -2/Testing | Found Prototype Device 28194 | -2/Testing | Identified Exp. Force Field 28230 | -2/Testing | Found Antimissile System 28351 | -2/Testing | Discovered new exit (range 6) 28371 | -2/Testing | Entered Section 7 28376 | -2/Section 7 | Spotted S7 Guard 28395 | -2/Section 7 | Destroyed S7 Guard 28403 | -2/Section 7 | Identified Exp. Target Analyzer 28412 | -2/Section 7 | Found Alien Artifact 28416 | -2/Section 7 | Identified Core Regenerator 28416 | -2/Section 7 | Used Core Regenerator, restored core integrity (+197) 28554 | -2/Section 7 | Found Alien Artifact 28554 | -2/Section 7 | Identified Integrated Dissipator 28554 | -2/Section 7 | Installed Integrated Dissipator, increased core heat dissipation (+2%) 28685 | -2/Section 7 | Spotted S7 Guard 28695 | -2/Section 7 | Destroyed S7 Guard 28791 | -2/Section 7 | Found Integrated Heat Negator 28791 | -2/Section 7 | Installed Integrated Heat Negator, increased core heat dissipation (+2%) 28895 | -2/Section 7 | Spotted S7 Guard 28904 | -2/Section 7 | Used Subatomic Replicator to replicate Integrated Singularity Reactor 28905 | -2/Section 7 | Found Integrated Singularity Reactor 28905 | -2/Section 7 | Installed Integrated Singularity Reactor, increased core energy generation (+2%) 28908 | -2/Section 7 | Installed Integrated Singularity Reactor, increased core energy generation (+2%) 28938 | -2/Section 7 | Destroyed S7 Guard 29262 | -2/Section 7 | Found Integrity Redistributor 29262 | -2/Section 7 | Used Integrity Redistributor, redistributed integrity from core (-238) 29342 | -2/Section 7 | Found Integrity Redistributor 29404 | -2/Section 7 | Identified exit to Access 29441 | -2/Section 7 | Spotted S7 Guard 29450 | -2/Section 7 | Found Core Membrane 29450 | -2/Section 7 | Installed Core Membrane, gained immunity to corruption 29641 | -2/Section 7 | Spotted Executioner 29642 | -2/Section 7 | Destroyed Executioner 29647 | -2/Section 7 | Spotted Executioner 29648 | -2/Section 7 | Destroyed Executioner 29661 | -2/Section 7 | Found Prototype Processor 29665 | -2/Section 7 | Found Exp. Targeting Computer 29682 | -2/Section 7 | Found Terrabomb 29697 | -2/Section 7 | Found Hpw. Transdimensional Reconstructor 29699 | -2/Section 7 | Found Transdimensional Reconstructor 29708 | -2/Section 7 | Found Transdimensional Reconstructor 29793 | -2/Section 7 | Spotted B-99 Colossus 29883 | -2/Section 7 | Found LRC Armor 29883 | -2/Section 7 | Installed LRC Armor, increased core integrity (+250) 29895 | -2/Section 7 | Found LRC Matter Compressor 29895 | -2/Section 7 | Installed LRC Matter Compressor, increased matter storage capacity (+125) 30122 | -2/Section 7 | Warped through subspace 30349 | -2/Section 7 | Destroyed S7 Guard 30529 | -2/Section 7 | Entered Access 30529 | -1/Access | Evolved 2 slots: Utility x2 30660 | -1/Access | Garrison activated, responded to threat 30814 | -1/Access | Warped through subspace 31101 | -1/Access | Used Terrabomb 31263 | -1/Access | Identified exit to Command 31439 | -1/Access | Warped through subspace 31445 | -1/Access | Garrison activated, responded to threat 31480 | -1/Access | Identified Exp. Core Analyzer 31538 | -1/Access | Entered Command 31779 | -1/Command | Spotted M Guard 31779 | -1/Command | Spotted Combat Programmer 31781 | -1/Command | Spotted M Guard 31781 | -1/Command | Spotted Combat Programmer 31800 | -1/Command | Assimilated Combat Programmer with FLK Orb 31802 | -1/Command | Assimilated Combat Programmer with FLK Orb 31810 | -1/Command | Allies destroyed M Guard 31813 | -1/Command | Allies destroyed M Guard 31822 | -1/Command | Found Prototype Reactor 31822 | -1/Command | Identified Zero-point Reactor 31827 | -1/Command | Found Zero-point Reactor 31843 | -1/Command | Found Prototype Device 31843 | -1/Command | Identified AEGIS Remote Shield 31854 | -1/Command | Found Zero-point Reactor 31856 | -1/Command | Found Prototype Launcher 31905 | -1/Command | Met MAIN.C 31905 | -1/Command | 0b10 Conduit disabled 31919 | -1/Command | Destroyed MAIN.C Shell 31921 | -1/Command | MAIN.C activated Command garrisons 31943 | -1/Command | Destroyed all MAIN.C guards 31973 | -1/Command | Destroyed MAIN.C 32073 | -1/Command | Build established: Scavenger-Mutant 32101 | -1/Command | Destroyed 12 combat bots 32193 | -1/Command | Destroyed 8 combat bots 32429 | -1/Command | Spotted B-99 Colossus 33091 | -1/Command | Warped through subspace to slip node 33091 | -1/Command | Discovered new exit (range 4) 33097 | -1/Command | Used Integrity Redistributor, redistributed integrity from core (-91) 33137 | -1/Command | Used Core Reset Matrix 33146 | -1/Command | Entered Access_0 33146 | -1/Access_0 | Accompanied by 6 allies 33147 | -1/Access_0 | Sensed 2 artifacts in vicinity 33149 | -1/Access_0 | Met Architect 33157 | -1/Access_0 | Architect warped through subspace 33219 | -1/Access_0 | Architect warped through subspace 33283 | -1/Access_0 | Architect warped through subspace 33331 | -1/Access_0 | Architect warped through subspace 33385 | -1/Access_0 | Architect warped through subspace 33406 | -1/Access_0 | Subspace Access Node disabled 33429 | -1/Access_0 | Build established: Alien-Mutant 33429 | -1/Access_0 | Architect warped through subspace 33473 | -1/Access_0 | Architect warped through subspace 33502 | -1/Access_0 | Subspace Access Node disabled 33525 | -1/Access_0 | Architect warped through subspace 33547 | -1/Access_0 | A6 warped into view 33555 | -1/Access_0 | Destroyed A6 33577 | -1/Access_0 | Architect warped through subspace 33628 | -1/Access_0 | Architect warped through subspace 33687 | -1/Access_0 | Architect warped through subspace 33741 | -1/Access_0 | Architect warped through subspace 33781 | -1/Access_0 | Architect warped through subspace 33819 | -1/Access_0 | Architect warped through subspace 33839 | -1/Access_0 | Found Hpw. Transdimensional Reconstructor 33853 | -1/Access_0 | Architect warped through subspace 33893 | -1/Access_0 | Architect warped through subspace 33922 | -1/Access_0 | Architect warped through subspace 33951 | -1/Access_0 | Architect warped through subspace 33968 | -1/Access_0 | Architect warped through subspace 34009 | -1/Access_0 | Architect warped through subspace 34026 | -1/Access_0 | Architect warped through subspace 34070 | -1/Access_0 | A5 warped into view 34075 | -1/Access_0 | Architect warped through subspace 34081 | -1/Access_0 | Destroyed A5 34105 | -1/Access_0 | Architect warped through subspace 34137 | -1/Access_0 | Architect warped through subspace 34137 | -1/Access_0 | Core integrity fell below 50% 34162 | -1/Access_0 | Architect warped through subspace 34180 | -1/Access_0 | Subspace Access Node disabled 34187 | -1/Access_0 | Architect warped through subspace 34210 | -1/Access_0 | Architect warped through subspace 34234 | -1/Access_0 | Architect warped through subspace 34244 | -1/Access_0 | Architect warped through subspace 34256 | -1/Access_0 | Architect warped through subspace 34270 | -1/Access_0 | Architect warped through subspace 34277 | -1/Access_0 | Architect warped through subspace 34291 | -1/Access_0 | Architect warped through subspace 34299 | -1/Access_0 | Architect warped through subspace 34303 | -1/Access_0 | Architect warped through subspace 34308 | -1/Access_0 | Architect warped through subspace 34309 | -1/Access_0 | Subspace Access Node disabled 34518 | -1/Access_0 | Lost 3 parts (1n2w) 34779 | -1/Access_0 | Emitted hypermatrix ping 34784 | -1/Access_0 | Assembled emerged from beneath the floor 34813 | -1/Access_0 | Found Prototype Device 34813 | -1/Access_0 | Identified Exp. Weapon Cycler 34824 | -1/Access_0 | Found Prototype Device 34824 | -1/Access_0 | Identified Desublimator 34918 | -1/Access_0 | Found Exp. Targeting Computer 34976 | -1/Access_0 | Found Prototype Protection 34976 | -1/Access_0 | Identified Centrium Heavy Armor Plating 34981 | -1/Access_0 | Found Prototype Device 34981 | -1/Access_0 | Identified System Purifier 34985 | -1/Access_0 | Found Prototype Processor 34985 | -1/Access_0 | Identified Exp. Melee Analysis Suite 35012 | -1/Access_0 | Found Exp. Weapon Cycler 35024 | -1/Access_0 | Found Prototype Device 35024 | -1/Access_0 | Identified Exp. Phase Shifter 35202 | -1/Access_0 | Found Core Regenerator 35202 | -1/Access_0 | Used Core Regenerator, restored core integrity (+462) 35408 | -1/Access_0 | A4 warped into view 35413 | -1/Access_0 | Assimilated A4 with FLK Orb 35489 | -1/Access_0 | Allies destroyed A8 35548 | -1/Access_0 | Destroyed A4 35660 | -1/Access_0 | Singularity Gate disabled 35686 | -1/Access_0 | Destroyed Architect 35705 | -1/Access_0 | Found Hpw. Transdimensional Reconstructor 36354 | -1/Access_0 | Destroyed A2 36372 | -1/Access_0 | Extracted Singularity Gate Test 138-C access codes from A2's data core 36484 | -1/Access_0 | Found Prototype Device 36484 | -1/Access_0 | Identified Exp. Shock Absorption System 36745 | -1/Access_0 | Found Exp. Phase Shifter 36940 | -1/Access_0 | A3 warped into view 36942 | -1/Access_0 | Assimilated A3 with FLK Orb 36998 | -1/Access_0 | Destroyed A3 37007 | -1/Access_0 | Warped through subspace to slip node 37007 | -1/Access_0 | Discovered new exit (range 8) 37024 | *** | Heading to fleet! Last Messages --------------- 36945_ Slug penetrates Wall. 36945_ HV Slug penetrates Enhanced Grunt. 36946_ Slug penetrates Wall. 36948_ Enhanced Grunt suffers critical hit. 36948_ Enhanced Grunt destroyed. 36991_ Activated siege mode. 36992_ Destroyed Unknown Reactor. 36994_ Destroyed Unknown Device. 36994_ Destroyed Prototype Protection. 36996_ A3 suffers critical hit. 36996_ Destroyed Prototype Ballistic Gun. 36996_ Destroyed Prototype Device. 36998_ A3 destroyed. 37005_ Ended siege mode. 37007_ Warped through subspace, drawn to slip node. 37007_ EXIT=FOUND 37010_ Dropped Imp. Energy Well. 37011_ Extracted 20 energy. 37011_ Dropped Imp. Weapon Cycler. 37012_ Extracted 20 energy. Map ----- +----------------------------------------------------+ | | | | | | | | | | | | | | | | | | | | | | | | | | | | | | | | | ?????????????????????????????????????????????????? | | ?????????????????????????????????????????????????? | | ?????????????????????????????????????????????????? | | ?????????????????????????????????????????????????? | | ?????????????????????????????????????????????????? | | ?????????????????????????????????????????????????? | | ????????????????????????###??????????????????????? | | ???????????????????????## ##?????????????????????? | | ???????????????????????# #?????????????????????? | | ???????????????????????# @ #?????????????????????? | | ??????????????????????## #?????????????????????? | | ??????????????????????# #?????????????????????? | | ??????????????????????# ##?????????????????????? | | ??????????????????????## #?????????????????????? | | ??????????????????????# #?????????????????????? | | ??????????????????????# ##?????????????????????? | | ??????????????????????# !! #?????????????????????? | | ??????????????????????# ##?????????????????????? | | ??????????????????????## #??????????????????????? | | ???????????????????????####??????????????????????? | | ?????????????????????????????????????????????????? | | ?????????????????????????????????????????????????? | | ?????????????????????????????????????????????????? | | ?????????????????????????????????????????????????? | | ?????????????????????????????????????????????????? | | ?????????????????????????????????????????????????? | | ?????????????????????????????????????????????????? | | ?????????????????????????????????????????????????? | | ?????????????????????????????????????????????????? | | ?????????????????????????????????????????????????? | | ?????????????????????????????????????????????????? | | ?????????????????????????????????????????????????? | | ?????????????????????????????????????????????????? | | ?????????????????????????????????????????????????? | +----------------------------------------------------+ Best States ------------- Heat Dissipation 150 Coolant Potential 120 Energy Generation 111 Energy Capacity 2090 Matter Stores 842 Matter Capacity 925 Sight Range 23 Terrain Scan Range 16 Terrain Scan Density 60 Additional Mass Support 16 Armor Coverage 2400 Resistance: KI 30 Resistance: EM 90 Weapon Shielding 66 Point Defense Rating 240 Weapon Cycling 30 Phase Shifting 20 Evasion (%) 60 Targeting Accuracy 36 Target Analysis 12 Core Analysis 15 Armor Integrity Analysis 66 Recoil Reduction 4 Matter Filtering 50 Salvage Targeting 3 Offensive Hacking 39 Defensive Hacking 30 Item Schematics ----------------- None Robot Schematics ------------------ None Fabricated ------------ Adv. Treads | x2 | -7/Factory Adv. Treads | x2 | -7/Factory Imp. Weapon Shielding | x2 | -2/Testing Alien Tech Used ----------------- Integrated Reactor Core Expander Phase Redirector Core Cannon Core Stripper Core Regenerator Integrated Dissipator Integrated Heat Negator Subatomic Replicator Integrated Singularity Reactor Integrity Redistributor Core Membrane LRC Armor LRC Matter Compressor Transdimensional Reconstructor High-powered Transdimensional Reconstructor Terrabomb Core Reset Matrix Achievements -------------- None Challenges ------------ None Game ------ Seed RestorationDiametricBattery Manual? 0 Play Time 07:04:54 Cumulative 1419.6 hours Start 2019.12.28 @ 01:34:39 End 2019.12.28 @ 23:04:08 Sessions 11 Manual Loads 0 Difficulty Rogue Special Mode None Game No. 2309 Rogue 2303 Adventurer 0 Explorer 6 Win Type 2 Total 108 Types 37/5/47/3/3/3/10 Lore% 97 Gallery% 98 Achievement% 96 Wizard Run 0 Options --------- ASCII 0 Keyboard 1 Movement Numpad Keybinds 0 Fullscreen 1 Font 18/SmallcapsGlow Map View 76x50 Tactical HUD 1 Map Filters NONE Filters NONE Steam 1 RUN: 2b448b7a-fc4d-4cd9-845a-7ed97207852a